{"text_format":"3","workbook":"xlsx","n_sheets":2,"sheets":["Sheet2","Sheet3"],"not_rendered":{"defined_names":1},"read":"whole","date_system":"1900"}

{"sheet":"Sheet2","index":0,"n_rows":1394,"n_cols":5,"rows_kept":1394}
[null,null,"Same"]
[41,"2 through 3",{"$f":"IF(B2=E2,1,0)","v":1},41,"2 through 3"]
[1,"1 through 3, My Test Proc Steps",{"$f":"IF(B3=E3,1,0)","v":0},1,"1 through 3 of My Test Proc Steps"]
[2,"0POP05\\u8209?EO\\u8209?EC00, LOSS OF ALL AC POWER, Step 1",1,2,"0POP05\\u8209?EO\\u8209?EC00, LOSS OF ALL AC POWER, Step 1"]
[3,"1 through 7",1,3,"1 through 7"]
[4,"0POP05\\u8209?EO\\u8209?FRS1, RESPONSE TO NUCLEAR POWER GENERATION \\u8209? ATWS, Step 1",1,4,"0POP05\\u8209?EO\\u8209?FRS1, RESPONSE TO NUCLEAR POWER GENERATION \\u8209? ATWS, Step 1"]
[5,"0POP05\\u8209?EO\\u8209?EC00, LOSS OF ALL AC POWER, Step 1",1,5,"0POP05\\u8209?EO\\u8209?EC00, LOSS OF ALL AC POWER, Step 1"]
[6,"0POP05\\u8209?EO\\u8209?ES01, REACTOR TRIP RESPONSE, Step 1",1,6,"0POP05\\u8209?EO\\u8209?ES01, REACTOR TRIP RESPONSE, Step 1"]
[7,"ADDENDUM 5, VERIFICATION OF SI EQUIPMENT OPERATION",1,7,"ADDENDUM 5, VERIFICATION OF SI EQUIPMENT OPERATION"]
[8,"ADDENDUM 5, VERIFICATION OF SI EQUIPMENT OPERATION",1,8,"ADDENDUM 5, VERIFICATION OF SI EQUIPMENT OPERATION"]
[9,"9.b",1,9,"9.b"]
[10,10,1,10,10]
[11,"0POP05\\u8209?EO\\u8209?EO10, LOSS OF REACTOR OR SECONDARY COOLANT, Step 1",1,11,"0POP05\\u8209?EO\\u8209?EO10, LOSS OF REACTOR OR SECONDARY COOLANT, Step 1"]
[12,14,1,12,14]
[13,14,1,13,14]
[14,"0POP05\\u8209?EO\\u8209?EO20, FAULTED STEAM GENERATOR ISOLATION, Step 1",1,14,"0POP05\\u8209?EO\\u8209?EO20, FAULTED STEAM GENERATOR ISOLATION, Step 1"]
[15,"0POP05\\u8209?EO\\u8209?EO30, STEAM GENERATOR TUBE RUPTURE, Step 1",1,15,"0POP05\\u8209?EO\\u8209?EO30, STEAM GENERATOR TUBE RUPTURE, Step 1"]
[16,"0POP05\\u8209?EO\\u8209?EO10, LOSS OF REACTOR OR SECONDARY COOLANT, Step 1",1,16,"0POP05\\u8209?EO\\u8209?EO10, LOSS OF REACTOR OR SECONDARY COOLANT, Step 1"]
[17,"0POP05\\u8209?EO\\u8209?ES11, SI TERMINATION, Step 1",1,17,"0POP05\\u8209?EO\\u8209?ES11, SI TERMINATION, Step 1"]
[18,19,1,18,19]
[19,19,1,19,19]
[20,19,1,20,19]
[21,19,1,21,19]
[22,20,1,22,20]
[23,"0POP05\\u8209?EO\\u8209?EO30, STEAM GENERATOR TUBE RUPTURE, Step 1",1,23,"0POP05\\u8209?EO\\u8209?EO30, STEAM GENERATOR TUBE RUPTURE, Step 1"]
[24,"0POP05\\u8209?EO\\u8209?EO30, STEAM GENERATOR TUBE RUPTURE, Step 1",1,24,"0POP05\\u8209?EO\\u8209?EO30, STEAM GENERATOR TUBE RUPTURE, Step 1"]
[25,"0POP05\\u8209?EO\\u8209?EO30, STEAM GENERATOR TUBE RUPTURE, Step 1",1,25,"0POP05\\u8209?EO\\u8209?EO30, STEAM GENERATOR TUBE RUPTURE, Step 1"]
[26,"0POP05\\u8209?EO\\u8209?EC12, LOCA OUTSIDE CONTAINMENT, Step 1",1,26,"0POP05\\u8209?EO\\u8209?EC12, LOCA OUTSIDE CONTAINMENT, Step 1"]
[27,"0POP05\\u8209?EO\\u8209?EC12, LOCA OUTSIDE CONTAINMENT, Step 1",1,27,"0POP05\\u8209?EO\\u8209?EC12, LOCA OUTSIDE CONTAINMENT, Step 1"]
[28,"0POP05\\u8209?EO\\u8209?EO10, LOSS OF REACTOR OR SECONDARY COOLANT, Step 1",1,28,"0POP05\\u8209?EO\\u8209?EO10, LOSS OF REACTOR OR SECONDARY COOLANT, Step 1"]
[29,31,1,29,31]
[30,"ADDENDUM 2, ESTABLISHING ALTERNATE CHARGING FLOW CONTROL",1,30,"ADDENDUM 2, ESTABLISHING ALTERNATE CHARGING FLOW CONTROL"]
[31,"ADDENDUM 2, ESTABLISHING ALTERNATE CHARGING FLOW CONTROL",1,31,"ADDENDUM 2, ESTABLISHING ALTERNATE CHARGING FLOW CONTROL"]
[32,32,1,32,32]
[33,"ADDENDUM 2, ESTABLISHING ALTERNATE CHARGING FLOW CONTROL",1,33,"ADDENDUM 2, ESTABLISHING ALTERNATE CHARGING FLOW CONTROL"]
[34,32,1,34,32]
[35,"ADDENDUM 3, EMERGENCY ELECTRICAL LOADING REQUIREMENTS",1,35,"ADDENDUM 3, EMERGENCY ELECTRICAL LOADING REQUIREMENTS"]
[36,"32.b",1,36,"32.b"]
[37,"32.c",1,37,"32.c"]
[38,"32.d",1,38,"32.d"]
[40,11,1,40,11]
[39,34,1,39,34]
[42,"1 through ? of 0POP05\\u8209?EO\\u8209?EO00, REACTOR TRIP OR SAFETY INJECTION, My Test Proc Steps",1,42,"1 through ? of 0POP05\\u8209?EO\\u8209?EO00, REACTOR TRIP OR SAFETY INJECTION, My Test Proc Steps"]
[43,"0POP05\\u8209?EO\\u8209?EO20, FAULTED STEAM GENERATOR ISOLATION, Step 1",1,43,"0POP05\\u8209?EO\\u8209?EO20, FAULTED STEAM GENERATOR ISOLATION, Step 1"]
[44,"0POP05\\u8209?EO\\u8209?EC21, UNCONTROLLED DEPRESSURIZATION OF ALL STEAM GENERATORS, Step 1",1,44,"0POP05\\u8209?EO\\u8209?EC21, UNCONTROLLED DEPRESSURIZATION OF ALL STEAM GENERATORS, Step 1"]
[45,"0POP05\\u8209?EO\\u8209?EO20, FAULTED STEAM GENERATOR ISOLATION, Step 1",1,45,"0POP05\\u8209?EO\\u8209?EO20, FAULTED STEAM GENERATOR ISOLATION, Step 1"]
[46,"3.a through 4.b",1,46,"3.a through 4.b"]
[47,"3.a, 3.b, 3.c and 4",1,47,"3.a, 3.b, 3.c and 4"]
[48,"0POP05\\u8209?EO\\u8209?EO10, LOSS OF REACTOR OR SECONDARY COOLANT, Step 1",1,48,"0POP05\\u8209?EO\\u8209?EO10, LOSS OF REACTOR OR SECONDARY COOLANT, Step 1"]
[49,"0POP05\\u8209?EO\\u8209?ES11, SI TERMINATION",1,49,"0POP05\\u8209?EO\\u8209?ES11, SI TERMINATION"]
[50,"0POP05\\u8209?EO\\u8209?ES12, POST LOCA COOLDOWN AND DEPRESSURIZATION",1,50,"0POP05\\u8209?EO\\u8209?ES12, POST LOCA COOLDOWN AND DEPRESSURIZATION"]
[51,"0POP05\\u8209?EO\\u8209?ES13, TRANSFER TO COLD LEG RECIRCULATION",1,51,"0POP05\\u8209?EO\\u8209?ES13, TRANSFER TO COLD LEG RECIRCULATION"]
[52,"0POP05\\u8209?EO\\u8209?ES14, TRANSFER TO HOT LEG RECIRCULATION",1,52,"0POP05\\u8209?EO\\u8209?ES14, TRANSFER TO HOT LEG RECIRCULATION"]
[53,"0POP05\\u8209?EO\\u8209?EC11, LOSS OF EMERGENCY COOLANT RECIRCULATION",1,53,"0POP05\\u8209?EO\\u8209?EC11, LOSS OF EMERGENCY COOLANT RECIRCULATION"]
[54,"0POP05\\u8209?EO\\u8209?EC12, LOCA OUTSIDE CONTAINMENT",1,54,"0POP05\\u8209?EO\\u8209?EC12, LOCA OUTSIDE CONTAINMENT"]
[55,"0POP05\\u8209?EO\\u8209?EO30, STEAM GENERATOR TUBE RUPTURE, Step 1",1,55,"0POP05\\u8209?EO\\u8209?EO30, STEAM GENERATOR TUBE RUPTURE, Step 1"]
[56,"0POP05\\u8209?EO\\u8209?EO30, STEAM GENERATOR TUBE RUPTURE",1,56,"0POP05\\u8209?EO\\u8209?EO30, STEAM GENERATOR TUBE RUPTURE"]
[57,"0POP05\\u8209?EO\\u8209?ES31, POST\\u8209?SGTR COOLDOWN USING BACKFILL",1,57,"0POP05\\u8209?EO\\u8209?ES31, POST\\u8209?SGTR COOLDOWN USING BACKFILL"]
[58,"0POP05\\u8209?EO\\u8209?ES32, POST\\u8209?SGTR COOLDOWN USING BLOWDOWN",1,58,"0POP05\\u8209?EO\\u8209?ES32, POST\\u8209?SGTR COOLDOWN USING BLOWDOWN"]
[59,"0POP05\\u8209?EO\\u8209?ES33, POST\\u8209?SGTR COOLDOWN USING STEAM DUMP",1,59,"0POP05\\u8209?EO\\u8209?ES33, POST\\u8209?SGTR COOLDOWN USING STEAM DUMP"]
[60,"0POP05\\u8209?EO\\u8209?EC31, SGTR WITH LOSS OF REACTOR COOLANT \\u8209? SUBCOOLED RECOVERY DESIRED",1,60,"0POP05\\u8209?EO\\u8209?EC31, SGTR WITH LOSS OF REACTOR COOLANT \\u8209? SUBCOOLED RECOVERY DESIRED"]
[61,"0POP05\\u8209?EO\\u8209?EC32, SGTR WITH LOSS OF REACTOR COOLANT \\u8209? SATURATED RECOVERY DESIRED",1,61,"0POP05\\u8209?EO\\u8209?EC32, SGTR WITH LOSS OF REACTOR COOLANT \\u8209? SATURATED RECOVERY DESIRED"]
[62,"0POP05\\u8209?EO\\u8209?EC33, SGTR WITHOUT PRESSURIZER PRESSURE CONTROL",1,62,"0POP05\\u8209?EO\\u8209?EC33, SGTR WITHOUT PRESSURIZER PRESSURE CONTROL"]
[63,"ADDENDUM 8, FAILING AIR TO MSIVS AND MSIBS",1,63,"ADDENDUM 8, FAILING AIR TO MSIVS AND MSIBS"]
[64,"4.b",1,64,"4.b"]
[65,"4.c",1,65,"4.c"]
[66,"ADDENDUM 6, PLACING MAIN FEEDWATER IN SERVICE",{"$f":"IF(B67=E67,1,0)","v":1},66,"ADDENDUM 6, PLACING MAIN FEEDWATER IN SERVICE"]
[67,"ADDENDUM 7, PLACING AFW IN SERVICE",1,67,"ADDENDUM 7, PLACING AFW IN SERVICE"]
[68,8,1,68,8]
[69,"?",1,69,"?"]
[70,"8.e",1,70,"8.e"]
[71,"ADDENDUM 1, ESTABLISHING NORMAL LETDOWN",1,71,"ADDENDUM 1, ESTABLISHING NORMAL LETDOWN"]
[72,"ADDENDUM 2, ESTABLISHING EXCESS LETDOWN",1,72,"ADDENDUM 2, ESTABLISHING EXCESS LETDOWN"]
[73,"ADDENDUM 1, ESTABLISHING NORMAL LETDOWN",1,73,"ADDENDUM 1, ESTABLISHING NORMAL LETDOWN"]
[74,9,1,74,9]
[75,"ADDENDUM 2, ESTABLISHING EXCESS LETDOWN",1,75,"ADDENDUM 2, ESTABLISHING EXCESS LETDOWN"]
[76,"ADDENDUM 9, ESTABLISHING ALTERNATE CHARGING FLOW CONTROL",1,76,"ADDENDUM 9, ESTABLISHING ALTERNATE CHARGING FLOW CONTROL"]
[77,"8.d",1,77,"8.d"]
[78,"8.d",1,78,"8.d"]
[79,"0POP05\\u8209?EO\\u8209?EO00, REACTOR TRIP OR SAFETY INJECTION, Step 1",1,79,"0POP05\\u8209?EO\\u8209?EO00, REACTOR TRIP OR SAFETY INJECTION, Step 1"]
[80,"ADDENDUM 2, ESTABLISHING EXCESS LETDOWN",1,80,"ADDENDUM 2, ESTABLISHING EXCESS LETDOWN"]
[81,"ADDENDUM 6, PLACING MAIN FEEDWATER IN SERVICE",1,81,"ADDENDUM 6, PLACING MAIN FEEDWATER IN SERVICE"]
[82,11,1,82,11]
[83,"10.c",1,83,"10.c"]
[84,"ADDENDUM 3, EMERGENCY ELECTRICAL LOADING REQUIREMENTS",1,84,"ADDENDUM 3, EMERGENCY ELECTRICAL LOADING REQUIREMENTS"]
[85,16,1,85,16]
[86,16,1,86,16]
[87,"ADDENDUM 8, FAILING AIR TO MSIVS AND MSIBS",1,87,"ADDENDUM 8, FAILING AIR TO MSIVS AND MSIBS"]
[88,17,1,88,17]
[89,"ADDENDUM 4, SATURATION CURVE",1,89,"ADDENDUM 4, SATURATION CURVE"]
[90,"17.b and 17.c",1,90,"17.b and 17.c"]
[91,18,1,91,18]
[95,"0POP05\\u8209?EO\\u8209?ES02, NATURAL CIRCULATION COOLDOWN, Step 2",1,95,"0POP05\\u8209?EO\\u8209?ES02, NATURAL CIRCULATION COOLDOWN, Step 2"]
[92,"0POP05\\u8209?EO\\u8209?ES02, NATURAL CIRCULATION COOLDOWN, Step 1",1,92,"0POP05\\u8209?EO\\u8209?ES02, NATURAL CIRCULATION COOLDOWN, Step 1"]
[93,22,1,93,22]
[94,"0POP05\\u8209?EO\\u8209?ES05, NATURAL CIRCULATION COOLDOWN WITHOUT LETDOWN, Step 1",1,94,"0POP05\\u8209?EO\\u8209?ES05, NATURAL CIRCULATION COOLDOWN WITHOUT LETDOWN, Step 1"]
[96,"PROCEDURE STEPS",1,96,"PROCEDURE STEPS"]
[97,27,1,97,27]
[98,2,1,98,2]
[99,2,1,99,2]
[100,6,1,100,6]
[101,"ADDENDUM 6, PLACING MAIN FEEDWATER IN SERVICE",1,101,"ADDENDUM 6, PLACING MAIN FEEDWATER IN SERVICE"]
[102,"ADDENDUM 7, PLACING AFW IN SERVICE",1,102,"ADDENDUM 7, PLACING AFW IN SERVICE"]
[103,"10.b",1,103,"10.b"]
[104,"10.a",1,104,"10.a"]
[105,"ADDENDUM 1, COOLDOWN CURVE WITH TWO OR MORE CRDM VENT FANS RUNNING",1,105,"ADDENDUM 1, COOLDOWN CURVE WITH TWO OR MORE CRDM VENT FANS RUNNING"]
[106,"ADDENDUM 2, COOLDOWN CURVE WITH LESS THEN TWO CRDM VENT FANS RUNNING",1,106,"ADDENDUM 2, COOLDOWN CURVE WITH LESS THEN TWO CRDM VENT FANS RUNNING"]
[107,"10.g",1,107,"10.g"]
[108,11,1,108,11]
[109,"10.h",1,109,"10.h"]
[110,"ADDENDUM 5, SG PORV LOCAL OPERATION",1,110,"ADDENDUM 5, SG PORV LOCAL OPERATION"]
[111,"ADDENDUM 5, SG PORV LOCAL OPERATION",1,111,"ADDENDUM 5, SG PORV LOCAL OPERATION"]
[112,"ADDENDUM 8, ESTABLISHING DEAERATOR VENT PATH",1,112,"ADDENDUM 8, ESTABLISHING DEAERATOR VENT PATH"]
[113,1,1,113,1]
[114,10,1,114,10]
[115,10,1,115,10]
[116,"ADDENDUM 2, COOLDOWN CURVE WITH LESS THEN TWO CRDM VENT FANS RUNNING",1,116,"ADDENDUM 2, COOLDOWN CURVE WITH LESS THEN TWO CRDM VENT FANS RUNNING"]
[117,"ADDENDUM 1, COOLDOWN CURVE WITH TWO OR MORE CRDM VENT FANS RUNNING",1,117,"ADDENDUM 1, COOLDOWN CURVE WITH TWO OR MORE CRDM VENT FANS RUNNING"]
[118,"0POP05\\u8209?EO\\u8209?ES03, NATURAL CIRCULATION COOLDOWN WITH STEAM VOID IN VESSEL",1,118,"0POP05\\u8209?EO\\u8209?ES03, NATURAL CIRCULATION COOLDOWN WITH STEAM VOID IN VESSEL"]
[119,"0POP05\\u8209?EO\\u8209?ES03, NATURAL CIRCULATION COOLDOWN WITH STEAM VOID IN VESSEL",1,119,"0POP05\\u8209?EO\\u8209?ES03, NATURAL CIRCULATION COOLDOWN WITH STEAM VOID IN VESSEL"]
[120,"ADDENDUM 2, COOLDOWN CURVE WITH LESS THEN TWO CRDM VENT FANS RUNNING",1,120,"ADDENDUM 2, COOLDOWN CURVE WITH LESS THEN TWO CRDM VENT FANS RUNNING"]
[121,"ADDENDUM 3, UPPER HEAD SUBCOOLING CURVE",1,121,"ADDENDUM 3, UPPER HEAD SUBCOOLING CURVE"]
[122,"16.c",1,122,"16.c"]
[123,"ADDENDUM 1, COOLDOWN CURVE WITH TWO OR MORE CRDM VENT FANS RUNNING",1,123,"ADDENDUM 1, COOLDOWN CURVE WITH TWO OR MORE CRDM VENT FANS RUNNING"]
[124,"ADDENDUM 2, COOLDOWN CURVE WITH LESS THEN TWO CRDM VENT FANS RUNNING",1,124,"ADDENDUM 2, COOLDOWN CURVE WITH LESS THEN TWO CRDM VENT FANS RUNNING"]
[125,18,1,125,18]
[126,18,1,126,18]
[127,"0POP05\\u8209?EO\\u8209?ES03, NATURAL CIRCULATION COOLDOWN WITH STEAM VOID IN VESSEL",1,127,"0POP05\\u8209?EO\\u8209?ES03, NATURAL CIRCULATION COOLDOWN WITH STEAM VOID IN VESSEL"]
[128,"ADDENDUM 1, COOLDOWN CURVE WITH TWO OR MORE CRDM VENT FANS RUNNING",1,128,"ADDENDUM 1, COOLDOWN CURVE WITH TWO OR MORE CRDM VENT FANS RUNNING"]
[129,"ADDENDUM 2, COOLDOWN CURVE WITH LESS THEN TWO CRDM VENT FANS RUNNING",1,129,"ADDENDUM 2, COOLDOWN CURVE WITH LESS THEN TWO CRDM VENT FANS RUNNING"]
[130,19,{"$f":"IF(B131=E131,1,0)","v":1},130,19]
[143,"0POP05\\u8209?EO\\u8209?ES02, NATURAL CIRCULATION COOLDOWN, Step 2",1,143,"0POP05\\u8209?EO\\u8209?ES02, NATURAL CIRCULATION COOLDOWN, Step 2"]
[131,"0POP05\\u8209?EO\\u8209?ES03, NATURAL CIRCULATION COOLDOWN WITH STEAM VOID IN VESSEL, Step 1",1,131,"0POP05\\u8209?EO\\u8209?ES03, NATURAL CIRCULATION COOLDOWN WITH STEAM VOID IN VESSEL, Step 1"]
[132,"19.b.1",1,132,"19.b.1"]
[133,"19.b.3",1,133,"19.b.3"]
[134,"19.c",1,134,"19.c"]
[135,"19.d, 19.e and 19.f",1,135,"19.d, 19.e and 19.f"]
[136,20,1,136,20]
[137,17,1,137,17]
[138,17,1,138,17]
[139,17,1,139,17]
[140,17,1,140,17]
[141,27,1,141,27]
[142,23,1,142,23]
[144,"0POP05\\u8209?EO\\u8209?ES02, NATURAL CIRCULATION COOLDOWN",1,144,"0POP05\\u8209?EO\\u8209?ES02, NATURAL CIRCULATION COOLDOWN"]
[145,14,1,145,14]
[146,"0POP05\\u8209?EO\\u8209?ES02, NATURAL CIRCULATION COOLDOWN",1,146,"0POP05\\u8209?EO\\u8209?ES02, NATURAL CIRCULATION COOLDOWN"]
[147,2,1,147,2]
[148,2,1,148,2]
[149,2,1,149,2]
[150,2,1,150,2]
[151,"ADDENDUM 1, RCS PRESSURE \\u8209? TEMPERATURE COOLDOWN CURVE",1,151,"ADDENDUM 1, RCS PRESSURE \\u8209? TEMPERATURE COOLDOWN CURVE"]
[152,3,1,152,3]
[153,"6.b.1",1,153,"6.b.1"]
[154,"6.b.3",1,154,"6.b.3"]
[155,"6.c",1,155,"6.c"]
[156,"6.d, 6.e and 6.f",1,156,"6.d, 6.e and 6.f"]
[157,7,1,157,7]
[158,3,1,158,3]
[159,14,1,159,14]
[160,10,1,160,10]
[161,10,1,161,10]
[162,"ADDENDUM 1, ESTABLISHING NORMAL LETDOWN",1,162,"ADDENDUM 1, ESTABLISHING NORMAL LETDOWN"]
[163,"ADDENDUM 2, ESTABLISHING EXCESS LETDOWN",1,163,"ADDENDUM 2, ESTABLISHING EXCESS LETDOWN"]
[164,"ADDENDUM 3, ESTABLISHING GRAVITY FEED FROM BORIC ACID TANK",1,164,"ADDENDUM 3, ESTABLISHING GRAVITY FEED FROM BORIC ACID TANK"]
[165,5,1,165,5]
[166,5,1,166,5]
[167,7,1,167,7]
[168,9,1,168,9]
[169,"ADDENDUM 11, PLACING MAIN FEEDWATER IN SERVICE",1,169,"ADDENDUM 11, PLACING MAIN FEEDWATER IN SERVICE"]
[170,"ADDENDUM 12, PLACING AFW IN SERVICE",1,170,"ADDENDUM 12, PLACING AFW IN SERVICE"]
[171,"15.a",1,171,"15.a"]
[172,"ADDENDUM 4, COOLDOWN CURVE WITH TWO OR MORE CRDM VENT FANS RUNNING",1,172,"ADDENDUM 4, COOLDOWN CURVE WITH TWO OR MORE CRDM VENT FANS RUNNING"]
[173,"ADDENDUM 5, COOLDOWN CURVE WITH LESS THAN TWO CRDM VENT FANS RUNNING",1,173,"ADDENDUM 5, COOLDOWN CURVE WITH LESS THAN TWO CRDM VENT FANS RUNNING"]
[174,"15.j",1,174,"15.j"]
[175,"15.k",1,175,"15.k"]
[176,"ADDENDUM 6, SG PORV LOCAL OPERATION",1,176,"ADDENDUM 6, SG PORV LOCAL OPERATION"]
[177,3,1,177,3]
[178,"ADDENDUM 6, SG PORV LOCAL OPERATION",1,178,"ADDENDUM 6, SG PORV LOCAL OPERATION"]
[179,"ADDENDUM 8, ESTABLISHING DEAERATOR VENT PATH",1,179,"ADDENDUM 8, ESTABLISHING DEAERATOR VENT PATH"]
[180,18,1,180,18]
[181,18,1,181,18]
[182,3,1,182,3]
[183,18,1,183,18]
[184,18,1,184,18]
[185,18,1,185,18]
[186,18,1,186,18]
[187,"ADDENDUM 4, COOLDOWN CURVE WITH TWO OR MORE CRDM VENT FANS RUNNING",1,187,"ADDENDUM 4, COOLDOWN CURVE WITH TWO OR MORE CRDM VENT FANS RUNNING"]
[188,"ADDENDUM 5, COOLDOWN CURVE WITH LESS THAN TWO CRDM VENT FANS RUNNING",1,188,"ADDENDUM 5, COOLDOWN CURVE WITH LESS THAN TWO CRDM VENT FANS RUNNING"]
[189,"ADDENDUM 7, UPPER HEAD SUBCOOLING CURVE",1,189,"ADDENDUM 7, UPPER HEAD SUBCOOLING CURVE"]
[190,20,1,190,20]
[191,20,1,191,20]
[192,"ADDENDUM 8, ESTABLISHING DEAERATOR VENT PATH",1,192,"ADDENDUM 8, ESTABLISHING DEAERATOR VENT PATH"]
[193,"ADDENDUM 4, COOLDOWN CURVE WITH TWO OR MORE CRDM VENT FANS RUNNING",1,193,"ADDENDUM 4, COOLDOWN CURVE WITH TWO OR MORE CRDM VENT FANS RUNNING"]
[194,"ADDENDUM 5, COOLDOWN CURVE WITH LESS THAN TWO CRDM VENT FANS RUNNING",{"$f":"IF(B195=E195,1,0)","v":1},194,"ADDENDUM 5, COOLDOWN CURVE WITH LESS THAN TWO CRDM VENT FANS RUNNING"]
[195,22,1,195,22]
[196,23,1,196,23]
[197,"ADDENDUM 7, UPPER HEAD SUBCOOLING CURVE",1,197,"ADDENDUM 7, UPPER HEAD SUBCOOLING CURVE"]
[198,"ADDENDUM 4, COOLDOWN CURVE WITH TWO OR MORE CRDM VENT FANS RUNNING",1,198,"ADDENDUM 4, COOLDOWN CURVE WITH TWO OR MORE CRDM VENT FANS RUNNING"]
[199,"ADDENDUM 5, COOLDOWN CURVE WITH LESS THAN TWO CRDM VENT FANS RUNNING",1,199,"ADDENDUM 5, COOLDOWN CURVE WITH LESS THAN TWO CRDM VENT FANS RUNNING"]
[200,26,1,200,26]
[201,"ADDENDUM 4, COOLDOWN CURVE WITH TWO OR MORE CRDM VENT FANS RUNNING",1,201,"ADDENDUM 4, COOLDOWN CURVE WITH TWO OR MORE CRDM VENT FANS RUNNING"]
[202,"ADDENDUM 5, COOLDOWN CURVE WITH LESS THAN TWO CRDM VENT FANS RUNNING",1,202,"ADDENDUM 5, COOLDOWN CURVE WITH LESS THAN TWO CRDM VENT FANS RUNNING"]
[203,"ADDENDUM 4, COOLDOWN CURVE WITH TWO OR MORE CRDM VENT FANS RUNNING",1,203,"ADDENDUM 4, COOLDOWN CURVE WITH TWO OR MORE CRDM VENT FANS RUNNING"]
[204,"ADDENDUM 5, COOLDOWN CURVE WITH LESS THAN TWO CRDM VENT FANS RUNNING",1,204,"ADDENDUM 5, COOLDOWN CURVE WITH LESS THAN TWO CRDM VENT FANS RUNNING"]
[205,"ADDENDUM 7, UPPER HEAD SUBCOOLING CURVE",1,205,"ADDENDUM 7, UPPER HEAD SUBCOOLING CURVE"]
[206,"25.d",1,206,"25.d"]
[207,"25.d",1,207,"25.d"]
[208,26,1,208,26]
[209,"26.b",1,209,"26.b"]
[210,"26.b",1,210,"26.b"]
[211,"26.d, 26.e and 26.f",1,211,"26.d, 26.e and 26.f"]
[212,"26.c",1,212,"26.c"]
[213,27,1,213,27]
[214,19,1,214,19]
[215,"ADDENDUM 4, COOLDOWN CURVE WITH TWO OR MORE CRDM VENT FANS RUNNING",1,215,"ADDENDUM 4, COOLDOWN CURVE WITH TWO OR MORE CRDM VENT FANS RUNNING"]
[216,"ADDENDUM 5, COOLDOWN CURVE WITH LESS THAN TWO CRDM VENT FANS RUNNING",1,216,"ADDENDUM 5, COOLDOWN CURVE WITH LESS THAN TWO CRDM VENT FANS RUNNING"]
[217,30,1,217,30]
[218,31,1,218,31]
[219,32,1,219,32]
[220,32,1,220,32]
[221,28,1,221,28]
[222,2,1,222,2]
[223,2,1,223,2]
[224,2,1,224,2]
[225,2,1,225,2]
[226,3,1,226,3]
[227,"2.d",1,227,"2.d"]
[228,"2.k",1,228,"2.k"]
[229,"2.i",1,229,"2.i"]
[230,3,1,230,3]
[231,"0POP05\\u8209?EO\\u8209?EO20, FAULTED STEAM GENERATOR ISOLATION, Step 1",1,231,"0POP05\\u8209?EO\\u8209?EO20, FAULTED STEAM GENERATOR ISOLATION, Step 1"]
[232,"0POP05\\u8209?EO\\u8209?EO30, STEAM GENERATOR TUBE RUPTURE, Step 1",1,232,"0POP05\\u8209?EO\\u8209?EO30, STEAM GENERATOR TUBE RUPTURE, Step 1"]
[233,"0POP05\\u8209?EO\\u8209?EO30, STEAM GENERATOR TUBE RUPTURE, Step 1",1,233,"0POP05\\u8209?EO\\u8209?EO30, STEAM GENERATOR TUBE RUPTURE, Step 1"]
[234,"0POP05\\u8209?EO\\u8209?EO30, STEAM GENERATOR TUBE RUPTURE, Step 1",1,234,"0POP05\\u8209?EO\\u8209?EO30, STEAM GENERATOR TUBE RUPTURE, Step 1"]
[235,11,1,235,11]
[236,"ADDENDUM 1, ESTABLISHING CONTAINMENT H2 MONITORING",1,236,"ADDENDUM 1, ESTABLISHING CONTAINMENT H2 MONITORING"]
[237,"12.c and 12.d",1,237,"12.c and 12.d"]
[238,13,1,238,13]
[239,13,1,239,13]
[240,14,1,240,14]
[241,"ADDENDUM 2, ESTABLISHING ALTERNATE CHARGING FLOW CONTROL",1,241,"ADDENDUM 2, ESTABLISHING ALTERNATE CHARGING FLOW CONTROL"]
[242,"ADDENDUM 2, ESTABLISHING ALTERNATE CHARGING FLOW CONTROL",1,242,"ADDENDUM 2, ESTABLISHING ALTERNATE CHARGING FLOW CONTROL"]
[243,"ADDENDUM 2, ESTABLISHING ALTERNATE CHARGING FLOW CONTROL",1,243,"ADDENDUM 2, ESTABLISHING ALTERNATE CHARGING FLOW CONTROL"]
[244,"14.c",1,244,"14.c"]
[245,"14.c",1,245,"14.c"]
[246,"0POP05\\u8209?EO\\u8209?ES11, SI TERMINATION, Step 1",1,246,"0POP05\\u8209?EO\\u8209?ES11, SI TERMINATION, Step 1"]
[247,16,1,247,16]
[248,16,1,248,16]
[249,16,1,249,16]
[250,16,1,250,16]
[251,16,1,251,16]
[252,16,1,252,16]
[253,16,1,253,16]
[254,16,1,254,16]
[255,17,1,255,17]
[256,"16.c",1,256,"16.c"]
[257,"16.c.1",1,257,"16.c.1"]
[258,"16.c.2",{"$f":"IF(B259=E259,1,0)","v":1},258,"16.c.2"]
[259,17,1,259,17]
[260,17,1,260,17]
[261,19,1,261,19]
[262,18,1,262,18]
[263,1,1,263,1]
[264,1,1,264,1]
[265,1,1,265,1]
[266,1,1,266,1]
[267,"ADDENDUM 3, EMERGENCY ELECTRICAL LOADING REQUIREMENTS",1,267,"ADDENDUM 3, EMERGENCY ELECTRICAL LOADING REQUIREMENTS"]
[268,"19.b",1,268,"19.b"]
[269,"19.c",1,269,"19.c"]
[270,"19.d",1,270,"19.d"]
[271,"0POP05\\u8209?EO\\u8209?EC11, LOSS OF EMERGENCY COOLANT RECIRCULATION, Step 1",1,271,"0POP05\\u8209?EO\\u8209?EC11, LOSS OF EMERGENCY COOLANT RECIRCULATION, Step 1"]
[272,"0POP05\\u8209?EO\\u8209?EC12, LOCA OUTSIDE CONTAINMENT, Step 1",1,272,"0POP05\\u8209?EO\\u8209?EC12, LOCA OUTSIDE CONTAINMENT, Step 1"]
[273,"0POP05\\u8209?EO\\u8209?ES12, POST LOCA COOLDOWN AND DEPRESSURIZATION, Step 1",1,273,"0POP05\\u8209?EO\\u8209?ES12, POST LOCA COOLDOWN AND DEPRESSURIZATION, Step 1"]
[274,22,1,274,22]
[275,"0POP05\\u8209?EO\\u8209?ES13, TRANSFER TO COLD LEG RECIRCULATION, Step 1",1,275,"0POP05\\u8209?EO\\u8209?ES13, TRANSFER TO COLD LEG RECIRCULATION, Step 1"]
[276,20,1,276,20]
[277,"23.b, 23.c and 23.d",1,277,"23.b, 23.c and 23.d"]
[278,24,1,278,24]
[279,25,1,279,25]
[280,"26.b and 26.c",1,280,"26.b and 26.c"]
[281,27,1,281,27]
[282,27,1,282,27]
[283,"0POP05\\u8209?EO\\u8209?ES14, TRANSFER TO HOT LEG RECIRCULATION, Step 1",1,283,"0POP05\\u8209?EO\\u8209?ES14, TRANSFER TO HOT LEG RECIRCULATION, Step 1"]
[284,"1.b, 2, 3, 4, 5, 6 and 7",1,284,"1.b, 2, 3, 4, 5, 6 and 7"]
[285,"2 through 4",1,285,"2 through 4"]
[286,"2 through 4.a",1,286,"2 through 4.a"]
[287,"2.a through 4",1,287,"2.a through 4"]
[288,"2.a through 2.c",1,288,"2.a through 2.c"]
[289,"2.a through 4.a",1,289,"2.a through 4.a"]
[290,"2.a.4)a, 2.a.4)b, 2.a.4)c, 2.a.4)d, 2.a.4)e, 2.a.5, 2.b, 2.c, 2.d, 2.e, 2.f, 3 and 4",1,290,"2.a.4)a, 2.a.4)b, 2.a.4)c, 2.a.4)d, 2.a.4)e, 2.a.5, 2.b, 2.c, 2.d, 2.e, 2.f, 3 and 4"]
[291,"2.a.4)a, 2.a.4)b, 2.a.4)c, 2.a.4)d, 2.a.4)e, 2.a.5, 2.b, 2.c, 2.d, 2.e, 2.f, 3 and 4",1,291,"2.a.4)a, 2.a.4)b, 2.a.4)c, 2.a.4)d, 2.a.4)e, 2.a.5, 2.b, 2.c, 2.d, 2.e, 2.f, 3 and 4"]
[292,"2.a.4)a, 2.a.4)b, 2.a.4)c, 2.a.4)d, 2.a.4)e, 2.a.5, 2.b, 2.c, 2.d, 2.e, 2.f, 3 and 4",1,292,"2.a.4)a, 2.a.4)b, 2.a.4)c, 2.a.4)d, 2.a.4)e, 2.a.5, 2.b, 2.c, 2.d, 2.e, 2.f, 3 and 4"]
[293,"2.a.1, 2.a.2, 2.a.3, 2.a.4, 2.a.5, 2.b, 2.c, 2.d, 2.e, 2.f, 3 and 4",1,293,"2.a.1, 2.a.2, 2.a.3, 2.a.4, 2.a.5, 2.b, 2.c, 2.d, 2.e, 2.f, 3 and 4"]
[294,"2.a.1, 2.a.2, 2.a.3, 2.a.4, 2.a.5, 2.b, 2.c, 2.d, 2.e, 2.f, 3 and 4",1,294,"2.a.1, 2.a.2, 2.a.3, 2.a.4, 2.a.5, 2.b, 2.c, 2.d, 2.e, 2.f, 3 and 4"]
[295,"2.a.1, 2.a.2, 2.a.3, 2.a.4, 2.a.5, 2.b, 2.c, 2.d, 2.e, 2.f, 3 and 4",1,295,"2.a.1, 2.a.2, 2.a.3, 2.a.4, 2.a.5, 2.b, 2.c, 2.d, 2.e, 2.f, 3 and 4"]
[296,"2.b, 2.c, 2.d, 2.e, 2.f, 3 and 4",1,296,"2.b, 2.c, 2.d, 2.e, 2.f, 3 and 4"]
[297,"2.b, 2.c, 2.d, 2.e, 2.f, 3 and 4",1,297,"2.b, 2.c, 2.d, 2.e, 2.f, 3 and 4"]
[298,"2.b, 2.c, 2.d, 2.e, 2.f, 3 and 4",1,298,"2.b, 2.c, 2.d, 2.e, 2.f, 3 and 4"]
[299,7,1,299,7]
[300,"2.a.4)b, 2.a.4)c, 2.a.4)d and 2.a.4)e",1,300,"2.a.4)b, 2.a.4)c, 2.a.4)d and 2.a.4)e"]
[301,"2.a.2, 2.a.3, 2.a.4 and 2.a.5",1,301,"2.a.2, 2.a.3, 2.a.4 and 2.a.5"]
[302,"2.a.2, 2.a.3, 2.a.4 and 2.a.5",1,302,"2.a.2, 2.a.3, 2.a.4 and 2.a.5"]
[303,"2.a, 2.b, 2.c, 2.d, 2.e and 2.f",1,303,"2.a, 2.b, 2.c, 2.d, 2.e and 2.f"]
[304,"2.a, 2.b, 2.c, 2.d, 2.e and 2.f",1,304,"2.a, 2.b, 2.c, 2.d, 2.e and 2.f"]
[305,"1, 2, 3 and 4",1,305,"1, 2, 3 and 4"]
[306,"1 and 2",1,306,"1 and 2"]
[307,"1 and 2",1,307,"1 and 2"]
[308,"1 and 2",1,308,"1 and 2"]
[309,"2.a.4)a, 2.a.4)b, 2.a.4)c, 2.a.4)d, 2.a.4)e, 2.a.5, 2.b, 2.c, 2.d, 2.e, 2.f, 3, 4, 5, 6, 7, 8 and 9",1,309,"2.a.4)a, 2.a.4)b, 2.a.4)c, 2.a.4)d, 2.a.4)e, 2.a.5, 2.b, 2.c, 2.d, 2.e, 2.f, 3, 4, 5, 6, 7, 8 and 9"]
[310,"2.a.2, 2.a.3, 2.a.4, 2.a.5, 2.b, 2.c, 2.d, 2.e, 2.f, 3, 4, 5, 6, 7, 8 and 9",1,310,"2.a.2, 2.a.3, 2.a.4, 2.a.5, 2.b, 2.c, 2.d, 2.e, 2.f, 3, 4, 5, 6, 7, 8 and 9"]
[311,"2.a, 2.b, 2.c, 2.d, 2.e, 2.f, 3, 4 and 5",1,311,"2.a, 2.b, 2.c, 2.d, 2.e, 2.f, 3, 4 and 5"]
[312,"2.a, 2.b, 2.c, 2.d, 2.e and 2.f",1,312,"2.a, 2.b, 2.c, 2.d, 2.e and 2.f"]
[313,"2.a.1, 2.a.2, 2.a.3, 2.a.4 and 2.a.5",1,313,"2.a.1, 2.a.2, 2.a.3, 2.a.4 and 2.a.5"]
[314,"2.a.1, 2.a.2, 2.a.3, 2.a.4 and 2.a.5",1,314,"2.a.1, 2.a.2, 2.a.3, 2.a.4 and 2.a.5"]
[315,"2.b, 2.c, 2.d, 2.e and 2.f",1,315,"2.b, 2.c, 2.d, 2.e and 2.f"]
[316,"2.a.2, 2.a.3, 2.a.4 and 2.a.5",1,316,"2.a.2, 2.a.3, 2.a.4 and 2.a.5"]
[317,"2.a.4)b, 2.a.4)c, 2.a.4)d and 2.a.4)e",1,317,"2.a.4)b, 2.a.4)c, 2.a.4)d and 2.a.4)e"]
[318,"2.b, 2.c, 2.d, 2.e and 2.f",1,318,"2.b, 2.c, 2.d, 2.e and 2.f"]
[319,"2.a.1, 2.a.2, 2.a.3, 2.a.4 and 2.a.5",1,319,"2.a.1, 2.a.2, 2.a.3, 2.a.4 and 2.a.5"]
[320,11,1,320,11]
[321,"ADDENDUM 1, ESTABLISHING ALTERNATE CHARGING FLOW CONTROL",1,321,"ADDENDUM 1, ESTABLISHING ALTERNATE CHARGING FLOW CONTROL"]
[322,"ADDENDUM 1, ESTABLISHING ALTERNATE CHARGING FLOW CONTROL",{"$f":"IF(B323=E323,1,0)","v":1},322,"ADDENDUM 1, ESTABLISHING ALTERNATE CHARGING FLOW CONTROL"]
[323,"12.c",1,323,"12.c"]
[324,"ADDENDUM 1, ESTABLISHING ALTERNATE CHARGING FLOW CONTROL",1,324,"ADDENDUM 1, ESTABLISHING ALTERNATE CHARGING FLOW CONTROL"]
[325,"12.c",1,325,"12.c"]
[326,"0POP05\\u8209?EO\\u8209?EO10, LOSS OF REACTOR OR SECONDARY COOLANT, Step 1",1,326,"0POP05\\u8209?EO\\u8209?EO10, LOSS OF REACTOR OR SECONDARY COOLANT, Step 1"]
[327,"0POP05\\u8209?EO\\u8209?EO10, LOSS OF REACTOR OR SECONDARY COOLANT, Step 1",1,327,"0POP05\\u8209?EO\\u8209?EO10, LOSS OF REACTOR OR SECONDARY COOLANT, Step 1"]
[328,15,1,328,15]
[329,"14.c.1 and 14.c.2",1,329,"14.c.1 and 14.c.2"]
[330,"14.c",1,330,"14.c"]
[331,15,1,331,15]
[332,"ADDENDUM 2, ESTABLISHING NORMAL LETDOWN",1,332,"ADDENDUM 2, ESTABLISHING NORMAL LETDOWN"]
[333,"ADDENDUM 3, ESTABLISHING EXCESS LETDOWN",1,333,"ADDENDUM 3, ESTABLISHING EXCESS LETDOWN"]
[334,"16.b",1,334,"16.b"]
[335,17,1,335,17]
[336,20,1,336,20]
[337,"ADDENDUM 4, ESTABLISHING NORMAL RCP SEAL COOLING",1,337,"ADDENDUM 4, ESTABLISHING NORMAL RCP SEAL COOLING"]
[338,25,1,338,25]
[339,25,1,339,25]
[340,25,1,340,25]
[341,"ADDENDUM 5, EMERGENCY ELECTRICAL LOADING REQUIREMENTS",1,341,"ADDENDUM 5, EMERGENCY ELECTRICAL LOADING REQUIREMENTS"]
[342,27,1,342,27]
[343,"27.b and 27.c",1,343,"27.b and 27.c"]
[344,28,1,344,28]
[345,"ADDENDUM 5, EMERGENCY ELECTRICAL LOADING REQUIREMENTS",1,345,"ADDENDUM 5, EMERGENCY ELECTRICAL LOADING REQUIREMENTS"]
[346,"28.b",1,346,"28.b"]
[347,"28.c",1,347,"28.c"]
[348,"28.d",1,348,"28.d"]
[349,"0POP05\\u8209?EO\\u8209?EO10, LOSS OF REACTOR OR SECONDARY COOLANT, Step 1",1,349,"0POP05\\u8209?EO\\u8209?EO10, LOSS OF REACTOR OR SECONDARY COOLANT, Step 1"]
[350,"0POP05\\u8209?EO\\u8209?EO10, LOSS OF REACTOR OR SECONDARY COOLANT, Step 1",1,350,"0POP05\\u8209?EO\\u8209?EO10, LOSS OF REACTOR OR SECONDARY COOLANT, Step 1"]
[351,"ADDENDUM 7, MCC POWER RESTORATION",1,351,"ADDENDUM 7, MCC POWER RESTORATION"]
[352,"ADDENDUM 8, RESETTING ESF SEQUENCER MODE I LOGIC",1,352,"ADDENDUM 8, RESETTING ESF SEQUENCER MODE I LOGIC"]
[353,"35.c",1,353,"35.c"]
[354,36,1,354,36]
[355,"0POP05\\u8209?EO\\u8209?ES02, NATURAL CIRCULATION COOLDOWN, Step 1",1,355,"0POP05\\u8209?EO\\u8209?ES02, NATURAL CIRCULATION COOLDOWN, Step 1"]
[356,37,1,356,37]
[357,"0POP05\\u8209?EO\\u8209?ES05, NATURAL CIRCULATION COOLDOWN WITHOUT LETDOWN, Step 1",1,357,"0POP05\\u8209?EO\\u8209?ES05, NATURAL CIRCULATION COOLDOWN WITHOUT LETDOWN, Step 1"]
[358,"ADDENDUM 1, EMERGENCY ELECTRICAL LOADING REQUIREMENTS",1,358,"ADDENDUM 1, EMERGENCY ELECTRICAL LOADING REQUIREMENTS"]
[359,3,1,359,3]
[360,"ADDENDUM 2, ESTABLISHING ALTERNATE MAXIMUM CHARGING FLOW CONTROL",1,360,"ADDENDUM 2, ESTABLISHING ALTERNATE MAXIMUM CHARGING FLOW CONTROL"]
[361,"ADDENDUM 2, ESTABLISHING ALTERNATE MAXIMUM CHARGING FLOW CONTROL",1,361,"ADDENDUM 2, ESTABLISHING ALTERNATE MAXIMUM CHARGING FLOW CONTROL"]
[362,"ADDENDUM 2, ESTABLISHING ALTERNATE MAXIMUM CHARGING FLOW CONTROL",1,362,"ADDENDUM 2, ESTABLISHING ALTERNATE MAXIMUM CHARGING FLOW CONTROL"]
[363,4,1,363,4]
[364,4,1,364,4]
[365,"0POP05\\u8209?EO\\u8209?EO30, STEAM GENERATOR TUBE RUPTURE, Step 1",1,365,"0POP05\\u8209?EO\\u8209?EO30, STEAM GENERATOR TUBE RUPTURE, Step 1"]
[366,"6.e",1,366,"6.e"]
[367,"ADDENDUM 3, SG PORV LOCAL OPERATION",1,367,"ADDENDUM 3, SG PORV LOCAL OPERATION"]
[368,"6.j",1,368,"6.j"]
[369,7,1,369,7]
[370,7,1,370,7]
[371,19,1,371,19]
[372,14,1,372,14]
[373,10,1,373,10]
[374,10,1,374,10]
[375,10,1,375,10]
[376,10,1,376,10]
[377,10,1,377,10]
[378,10,1,378,10]
[379,"ADDENDUM 3, SG PORV LOCAL OPERATION",1,379,"ADDENDUM 3, SG PORV LOCAL OPERATION"]
[380,10,1,380,10]
[381,10,1,381,10]
[382,11,1,382,11]
[383,11,1,383,11]
[384,"10.d",1,384,"10.d"]
[385,11,1,385,11]
[386,11,{"$f":"IF(B387=E387,1,0)","v":1},386,11]
[387,19,1,387,19]
[388,10,1,388,10]
[389,10,1,389,10]
[392,"ADDENDUM 4, RESETTING ESF SEQUENCER MODE I LOGIC",1,392,"ADDENDUM 4, RESETTING ESF SEQUENCER MODE I LOGIC"]
[390,12,1,390,12]
[391,12,1,391,12]
[393,"13.a",1,393,"13.a"]
[394,13,1,394,13]
[395,10,1,395,10]
[396,10,1,396,10]
[397,19,1,397,19]
[398,19,1,398,19]
[399,14,1,399,14]
[400,19,1,400,19]
[401,19,1,401,19]
[402,15,1,402,15]
[403,15,1,403,15]
[404,"15.b",1,404,"15.b"]
[405,"ADDENDUM 5, SATURATION CURVE",1,405,"ADDENDUM 5, SATURATION CURVE"]
[406,17,1,406,17]
[407,17,1,407,17]
[408,17,1,408,17]
[409,17,1,409,17]
[410,17,1,410,17]
[411,17,1,411,17]
[412,"ADDENDUM 3, SG PORV LOCAL OPERATION",1,412,"ADDENDUM 3, SG PORV LOCAL OPERATION"]
[413,17,1,413,17]
[414,17,1,414,17]
[415,20,1,415,20]
[416,"17.a",1,416,"17.a"]
[417,"17.c",1,417,"17.c"]
[418,20,1,418,20]
[419,10,1,419,10]
[420,10,1,420,10]
[421,10,1,421,10]
[422,10,1,422,10]
[423,"20.c",1,423,"20.c"]
[424,21,1,424,21]
[425,"ADDENDUM 1, EMERGENCY ELECTRICAL LOADING REQUIREMENTS",1,425,"ADDENDUM 1, EMERGENCY ELECTRICAL LOADING REQUIREMENTS"]
[426,"21.b",1,426,"21.b"]
[427,"21.c",1,427,"21.c"]
[428,"21.d",1,428,"21.d"]
[429,"ADDENDUM 6, MCC POWER RESTORATION",1,429,"ADDENDUM 6, MCC POWER RESTORATION"]
[430,"ADDENDUM 7, ESTABLISHING NORMAL RCP SEAL COOLING",1,430,"ADDENDUM 7, ESTABLISHING NORMAL RCP SEAL COOLING"]
[431,25,1,431,25]
[432,25,1,432,25]
[433,25,1,433,25]
[434,"25.b and 25.c",1,434,"25.b and 25.c"]
[435,26,1,435,26]
[436,28,1,436,28]
[437,"ADDENDUM 10, REACTOR COOLANT PUMP SEAL LEAKOFF VALUES",1,437,"ADDENDUM 10, REACTOR COOLANT PUMP SEAL LEAKOFF VALUES"]
[438,30,1,438,30]
[439,"ADDENDUM 8, ESTABLISHING CONTAINMENT H2 MONITORING",1,439,"ADDENDUM 8, ESTABLISHING CONTAINMENT H2 MONITORING"]
[440,"30.c and 30.d",1,440,"30.c and 30.d"]
[441,31,1,441,31]
[442,31,1,442,31]
[443,2,1,443,2]
[444,"1 through 6",1,444,"1 through 6"]
[445,"0POP05\\u8209?EO\\u8209?EC11, LOSS OF EMERGENCY COOLANT RECIRCULATION, Step 1",1,445,"0POP05\\u8209?EO\\u8209?EC11, LOSS OF EMERGENCY COOLANT RECIRCULATION, Step 1"]
[446,"0POP05\\u8209?EO\\u8209?EO10, LOSS OF REACTOR OR SECONDARY COOLANT",1,446,"0POP05\\u8209?EO\\u8209?EO10, LOSS OF REACTOR OR SECONDARY COOLANT"]
[447,3,1,447,3]
[448,"ADDENDUM 3, MAIN STEAM HEADER ISOLATION",1,448,"ADDENDUM 3, MAIN STEAM HEADER ISOLATION"]
[449,"0POP05\\u8209?EO\\u8209?EC21, UNCONTROLLED DEPRESSURIZATION OF ALL STEAM GENERATORS, Step 1",1,449,"0POP05\\u8209?EO\\u8209?EC21, UNCONTROLLED DEPRESSURIZATION OF ALL STEAM GENERATORS, Step 1"]
[450,5,{"$f":"IF(B451=E451,1,0)","v":1},450,5]
[451,"0POP05\\u8209?EO\\u8209?EO30, STEAM GENERATOR TUBE RUPTURE, Step 1",1,451,"0POP05\\u8209?EO\\u8209?EO30, STEAM GENERATOR TUBE RUPTURE, Step 1"]
[452,"0POP05\\u8209?EO\\u8209?EO30, STEAM GENERATOR TUBE RUPTURE, Step 1",1,452,"0POP05\\u8209?EO\\u8209?EO30, STEAM GENERATOR TUBE RUPTURE, Step 1"]
[453,"0POP05\\u8209?EO\\u8209?ES11, SI TERMINATION, Step 1",1,453,"0POP05\\u8209?EO\\u8209?ES11, SI TERMINATION, Step 1"]
[454,"0POP05\\u8209?EO\\u8209?EO10, LOSS OF REACTOR OR SECONDARY COOLANT, Step 1",1,454,"0POP05\\u8209?EO\\u8209?EO10, LOSS OF REACTOR OR SECONDARY COOLANT, Step 1"]
[455,"0POP05\\u8209?EO\\u8209?EO10, LOSS OF REACTOR OR SECONDARY COOLANT, Step 1",1,455,"0POP05\\u8209?EO\\u8209?EO10, LOSS OF REACTOR OR SECONDARY COOLANT, Step 1"]
[456,"0POP05\\u8209?EO\\u8209?EO10, LOSS OF REACTOR OR SECONDARY COOLANT, Step 1",1,456,"0POP05\\u8209?EO\\u8209?EO10, LOSS OF REACTOR OR SECONDARY COOLANT, Step 1"]
[457,"0POP05\\u8209?EO\\u8209?EO10, LOSS OF REACTOR OR SECONDARY COOLANT, Step 1",1,457,"0POP05\\u8209?EO\\u8209?EO10, LOSS OF REACTOR OR SECONDARY COOLANT, Step 1"]
[458,2,1,458,2]
[459,2,1,459,2]
[460,"3 through 7",1,460,"3 through 7"]
[461,3,1,461,3]
[462,4,1,462,4]
[463,5,1,463,5]
[464,7,1,464,7]
[465,8,1,465,8]
[466,"3.h",1,466,"3.h"]
[467,"ADDENDUM 1, FAILING AIR TO MSIVS AND MSIBS",1,467,"ADDENDUM 1, FAILING AIR TO MSIVS AND MSIBS"]
[468,"3.h",1,468,"3.h"]
[469,"ADDENDUM 2, MAIN STEAM HEADER ISOLATION",1,469,"ADDENDUM 2, MAIN STEAM HEADER ISOLATION"]
[470,"0POP05\\u8209?EO\\u8209?EC31, SGTR WITH LOSS OF REACTOR COOLANT \\u8209? SUBCOOLED RECOVERY DESIRED, Step 1",1,470,"0POP05\\u8209?EO\\u8209?EC31, SGTR WITH LOSS OF REACTOR COOLANT \\u8209? SUBCOOLED RECOVERY DESIRED, Step 1"]
[471,"4.b",1,471,"4.b"]
[472,5,1,472,5]
[473,5,1,473,5]
[474,"0POP05\\u8209?EO\\u8209?EC31, SGTR WITH LOSS OF REACTOR COOLANT \\u8209? SUBCOOLED RECOVERY DESIRED, Step 1",1,474,"0POP05\\u8209?EO\\u8209?EC31, SGTR WITH LOSS OF REACTOR COOLANT \\u8209? SUBCOOLED RECOVERY DESIRED, Step 1"]
[475,5,1,475,5]
[476,7,1,476,7]
[477,"0POP05\\u8209?EO\\u8209?EC31, SGTR WITH LOSS OF REACTOR COOLANT \\u8209? SUBCOOLED RECOVERY DESIRED, Step 1",1,477,"0POP05\\u8209?EO\\u8209?EC31, SGTR WITH LOSS OF REACTOR COOLANT \\u8209? SUBCOOLED RECOVERY DESIRED, Step 1"]
[478,"0POP05\\u8209?EO\\u8209?FO04, INTEGRITY CRITICAL SAFETY FUNCTION STATUS TREE",1,478,"0POP05\\u8209?EO\\u8209?FO04, INTEGRITY CRITICAL SAFETY FUNCTION STATUS TREE"]
[479,31,1,479,31]
[480,"7.a",1,480,"7.a"]
[481,"7.j and 7.k",1,481,"7.j and 7.k"]
[482,"7.d",1,482,"7.d"]
[483,"7.h",1,483,"7.h"]
[484,8,1,484,8]
[485,"7.i",1,485,"7.i"]
[486,"ADDENDUM 4, SG PORV LOCAL OPERATION",1,486,"ADDENDUM 4, SG PORV LOCAL OPERATION"]
[487,"0POP05\\u8209?EO\\u8209?EC31, SGTR WITH LOSS OF REACTOR COOLANT \\u8209? SUBCOOLED RECOVERY DESIRED, Step 1",1,487,"0POP05\\u8209?EO\\u8209?EC31, SGTR WITH LOSS OF REACTOR COOLANT \\u8209? SUBCOOLED RECOVERY DESIRED, Step 1"]
[488,1,1,488,1]
[489,"0POP05\\u8209?EO\\u8209?EC31, SGTR WITH LOSS OF REACTOR COOLANT \\u8209? SUBCOOLED RECOVERY DESIRED, Step 1",1,489,"0POP05\\u8209?EO\\u8209?EC31, SGTR WITH LOSS OF REACTOR COOLANT \\u8209? SUBCOOLED RECOVERY DESIRED, Step 1"]
[490,"0POP05\\u8209?EO\\u8209?EC31, SGTR WITH LOSS OF REACTOR COOLANT \\u8209? SUBCOOLED RECOVERY DESIRED",1,490,"0POP05\\u8209?EO\\u8209?EC31, SGTR WITH LOSS OF REACTOR COOLANT \\u8209? SUBCOOLED RECOVERY DESIRED"]
[491,"0POP05\\u8209?EO\\u8209?EC31, SGTR WITH LOSS OF REACTOR COOLANT \\u8209? SUBCOOLED RECOVERY DESIRED, Step 1",1,491,"0POP05\\u8209?EO\\u8209?EC31, SGTR WITH LOSS OF REACTOR COOLANT \\u8209? SUBCOOLED RECOVERY DESIRED, Step 1"]
[492,"ADDENDUM 14, DEPRESSURIZATION TERMINATION CRITERIA",1,492,"ADDENDUM 14, DEPRESSURIZATION TERMINATION CRITERIA"]
[493,19,1,493,19]
[494,22,1,494,22]
[495,22,1,495,22]
[496,20,1,496,20]
[497,20,1,497,20]
[498,22,1,498,22]
[499,22,1,499,22]
[500,"ADDENDUM 14, DEPRESSURIZATION TERMINATION CRITERIA",1,500,"ADDENDUM 14, DEPRESSURIZATION TERMINATION CRITERIA"]
[501,20,1,501,20]
[502,"0POP05\\u8209?EO\\u8209?EC33, SGTR WITHOUT PRESSURIZER PRESSURE CONTROL, Step 1",1,502,"0POP05\\u8209?EO\\u8209?EC33, SGTR WITHOUT PRESSURIZER PRESSURE CONTROL, Step 1"]
[503,"0POP05\\u8209?EO\\u8209?EC31, SGTR WITH LOSS OF REACTOR COOLANT \\u8209? SUBCOOLED RECOVERY DESIRED, Step 1",1,503,"0POP05\\u8209?EO\\u8209?EC31, SGTR WITH LOSS OF REACTOR COOLANT \\u8209? SUBCOOLED RECOVERY DESIRED, Step 1"]
[504,"0POP05\\u8209?EO\\u8209?EC31, SGTR WITH LOSS OF REACTOR COOLANT \\u8209? SUBCOOLED RECOVERY DESIRED, Step 1",1,504,"0POP05\\u8209?EO\\u8209?EC31, SGTR WITH LOSS OF REACTOR COOLANT \\u8209? SUBCOOLED RECOVERY DESIRED, Step 1"]
[505,"0POP05\\u8209?EO\\u8209?EC31, SGTR WITH LOSS OF REACTOR COOLANT \\u8209? SUBCOOLED RECOVERY DESIRED, Step 1",1,505,"0POP05\\u8209?EO\\u8209?EC31, SGTR WITH LOSS OF REACTOR COOLANT \\u8209? SUBCOOLED RECOVERY DESIRED, Step 1"]
[506,"0POP05\\u8209?EO\\u8209?EC31, SGTR WITH LOSS OF REACTOR COOLANT \\u8209? SUBCOOLED RECOVERY DESIRED, Step 1",1,506,"0POP05\\u8209?EO\\u8209?EC31, SGTR WITH LOSS OF REACTOR COOLANT \\u8209? SUBCOOLED RECOVERY DESIRED, Step 1"]
[507,5,1,507,5]
[508,5,1,508,5]
[509,25,1,509,25]
[510,"ADDENDUM 5, ESTABLISHING ALTERNATE MAXIMUM CHARGING FLOW CONTROL",1,510,"ADDENDUM 5, ESTABLISHING ALTERNATE MAXIMUM CHARGING FLOW CONTROL"]
[511,"ADDENDUM 5, ESTABLISHING ALTERNATE MAXIMUM CHARGING FLOW CONTROL",1,511,"ADDENDUM 5, ESTABLISHING ALTERNATE MAXIMUM CHARGING FLOW CONTROL"]
[512,"25.c",1,512,"25.c"]
[513,"0POP05\\u8209?EO\\u8209?EC31, SGTR WITH LOSS OF REACTOR COOLANT \\u8209? SUBCOOLED RECOVERY DESIRED, Step 1",1,513,"0POP05\\u8209?EO\\u8209?EC31, SGTR WITH LOSS OF REACTOR COOLANT \\u8209? SUBCOOLED RECOVERY DESIRED, Step 1"]
[514,"0POP05\\u8209?EO\\u8209?EC31, SGTR WITH LOSS OF REACTOR COOLANT \\u8209? SUBCOOLED RECOVERY DESIRED, Step 1",{"$f":"IF(B515=E515,1,0)","v":1},514,"0POP05\\u8209?EO\\u8209?EC31, SGTR WITH LOSS OF REACTOR COOLANT \\u8209? SUBCOOLED RECOVERY DESIRED, Step 1"]
[515,"ADDENDUM 6, ESTABLISHING NORMAL LETDOWN",1,515,"ADDENDUM 6, ESTABLISHING NORMAL LETDOWN"]
[516,"ADDENDUM 7, ESTABLISHING EXCESS LETDOWN",1,516,"ADDENDUM 7, ESTABLISHING EXCESS LETDOWN"]
[517,"28.b",1,517,"28.b"]
[518,29,1,518,29]
[519,"30.b",1,519,"30.b"]
[520,"30.c",1,520,"30.c"]
[521,"30.d",1,521,"30.d"]
[522,"30.e",1,522,"30.e"]
[523,31,1,523,31]
[524,1,1,524,1]
[525,33,1,525,33]
[526,"32.c.1",1,526,"32.c.1"]
[527,"32.c.2",1,527,"32.c.2"]
[528,"32.c",1,528,"32.c"]
[529,33,1,529,33]
[530,34,1,530,34]
[531,"ADDENDUM 3, EMERGENCY ELECTRICAL LOADING REQUIREMENTS",1,531,"ADDENDUM 3, EMERGENCY ELECTRICAL LOADING REQUIREMENTS"]
[532,"ADDENDUM 3, EMERGENCY ELECTRICAL LOADING REQUIREMENTS",1,532,"ADDENDUM 3, EMERGENCY ELECTRICAL LOADING REQUIREMENTS"]
[533,"35.b",1,533,"35.b"]
[534,"35.c",1,534,"35.c"]
[535,"35.d",1,535,"35.d"]
[536,"ADDENDUM 8, SECONDARY CONTAMINATION CONTROL",1,536,"ADDENDUM 8, SECONDARY CONTAMINATION CONTROL"]
[537,"ADDENDUM 9, ESTABLISHING NORMAL RCP SEAL COOLING",1,537,"ADDENDUM 9, ESTABLISHING NORMAL RCP SEAL COOLING"]
[538,40,1,538,40]
[539,40,1,539,40]
[540,40,1,540,40]
[541,40,1,541,40]
[542,40,1,542,40]
[543,40,1,543,40]
[544,"40.b",1,544,"40.b"]
[545,"41.b and 41.c",1,545,"41.b and 41.c"]
[546,42,1,546,42]
[547,"ADDENDUM 11, MCC POWER RESTORATION",1,547,"ADDENDUM 11, MCC POWER RESTORATION"]
[548,"ADDENDUM 12, RESETTING ESF SEQUENCER MODE I LOGIC",1,548,"ADDENDUM 12, RESETTING ESF SEQUENCER MODE I LOGIC"]
[549,"0POP05\\u8209?EO\\u8209?ES31, POST\\u8209?SGTR COOLDOWN USING BACKFILL, Step 1",1,549,"0POP05\\u8209?EO\\u8209?ES31, POST\\u8209?SGTR COOLDOWN USING BACKFILL, Step 1"]
[550,"0POP05\\u8209?EO\\u8209?ES32, POST\\u8209?SGTR COOLDOWN USING BLOWDOWN, Step 1",1,550,"0POP05\\u8209?EO\\u8209?ES32, POST\\u8209?SGTR COOLDOWN USING BLOWDOWN, Step 1"]
[551,"0POP05\\u8209?EO\\u8209?ES33, POST\\u8209?SGTR COOLDOWN USING STEAM DUMP, Step 1",1,551,"0POP05\\u8209?EO\\u8209?ES33, POST\\u8209?SGTR COOLDOWN USING STEAM DUMP, Step 1"]
[552,"0POP05\\u8209?EO\\u8209?EC31, SGTR WITH LOSS OF REACTOR COOLANT \\u8209? SUBCOOLED RECOVERY DESIRED, Step 1",1,552,"0POP05\\u8209?EO\\u8209?EC31, SGTR WITH LOSS OF REACTOR COOLANT \\u8209? SUBCOOLED RECOVERY DESIRED, Step 1"]
[553,"0POP05\\u8209?EO\\u8209?EO30, STEAM GENERATOR TUBE RUPTURE, Step 1",1,553,"0POP05\\u8209?EO\\u8209?EO30, STEAM GENERATOR TUBE RUPTURE, Step 1"]
[554,"0POP05\\u8209?EO\\u8209?EC31, SGTR WITH LOSS OF REACTOR COOLANT \\u8209? SUBCOOLED RECOVERY DESIRED",1,554,"0POP05\\u8209?EO\\u8209?EC31, SGTR WITH LOSS OF REACTOR COOLANT \\u8209? SUBCOOLED RECOVERY DESIRED"]
[555,"ADDENDUM 1, SG PORV LOCAL OPERATION",1,555,"ADDENDUM 1, SG PORV LOCAL OPERATION"]
[556,"6.g",1,556,"6.g"]
[557,7,1,557,7]
[558,7,1,558,7]
[559,7,1,559,7]
[560,7,1,560,7]
[561,"0POP05\\u8209?EO\\u8209?EC31, SGTR WITH LOSS OF REACTOR COOLANT \\u8209? SUBCOOLED RECOVERY DESIRED, Step 1",1,561,"0POP05\\u8209?EO\\u8209?EC31, SGTR WITH LOSS OF REACTOR COOLANT \\u8209? SUBCOOLED RECOVERY DESIRED, Step 1"]
[562,9,1,562,9]
[563,9,1,563,9]
[564,10,1,564,10]
[565,12,1,565,12]
[566,13,1,566,13]
[567,"ADDENDUM 3, REACTOR COOLANT PUMP SEAL LEAKOFF VALUES",1,567,"ADDENDUM 3, REACTOR COOLANT PUMP SEAL LEAKOFF VALUES"]
[568,4,1,568,4]
[569,4,1,569,4]
[570,"0POP05\\u8209?EO\\u8209?EC31, SGTR WITH LOSS OF REACTOR COOLANT \\u8209? SUBCOOLED RECOVERY DESIRED, Step 1",1,570,"0POP05\\u8209?EO\\u8209?EC31, SGTR WITH LOSS OF REACTOR COOLANT \\u8209? SUBCOOLED RECOVERY DESIRED, Step 1"]
[571,"0POP05\\u8209?EO\\u8209?EO30, STEAM GENERATOR TUBE RUPTURE, Step 1",1,571,"0POP05\\u8209?EO\\u8209?EO30, STEAM GENERATOR TUBE RUPTURE, Step 1"]
[572,"0POP05\\u8209?EO\\u8209?EC31, SGTR WITH LOSS OF REACTOR COOLANT \\u8209? SUBCOOLED RECOVERY DESIRED",1,572,"0POP05\\u8209?EO\\u8209?EC31, SGTR WITH LOSS OF REACTOR COOLANT \\u8209? SUBCOOLED RECOVERY DESIRED"]
[573,"6.c",1,573,"6.c"]
[574,"ADDENDUM 1, SG PORV LOCAL OPERATION",1,574,"ADDENDUM 1, SG PORV LOCAL OPERATION"]
[575,"6.g",1,575,"6.g"]
[576,7,1,576,7]
[577,7,1,577,7]
[578,7,{"$f":"IF(B579=E579,1,0)","v":1},578,7]
[579,7,1,579,7]
[580,"0POP05\\u8209?EO\\u8209?EC31, SGTR WITH LOSS OF REACTOR COOLANT \\u8209? SUBCOOLED RECOVERY DESIRED, Step 1",1,580,"0POP05\\u8209?EO\\u8209?EC31, SGTR WITH LOSS OF REACTOR COOLANT \\u8209? SUBCOOLED RECOVERY DESIRED, Step 1"]
[581,4,1,581,4]
[582,4,1,582,4]
[583,13,1,583,13]
[584,"0POP05\\u8209?EO\\u8209?ES31, POST\\u8209?SGTR COOLDOWN USING BACKFILL, Step 1",1,584,"0POP05\\u8209?EO\\u8209?ES31, POST\\u8209?SGTR COOLDOWN USING BACKFILL, Step 1"]
[585,"0POP05\\u8209?EO\\u8209?ES33, POST\\u8209?SGTR COOLDOWN USING STEAM DUMP, Step 1",1,585,"0POP05\\u8209?EO\\u8209?ES33, POST\\u8209?SGTR COOLDOWN USING STEAM DUMP, Step 1"]
[586,14,1,586,14]
[587,14,1,587,14]
[588,15,1,588,15]
[589,16,1,589,16]
[590,"ADDENDUM 3, REACTOR COOLANT PUMP SEAL LEAKOFF VALUES",1,590,"ADDENDUM 3, REACTOR COOLANT PUMP SEAL LEAKOFF VALUES"]
[591,10,1,591,10]
[592,10,1,592,10]
[593,17,1,593,17]
[594,"ADDENDUM 1, SG PORV LOCAL OPERATION",1,594,"ADDENDUM 1, SG PORV LOCAL OPERATION"]
[595,18,1,595,18]
[596,"0POP05\\u8209?EO\\u8209?EC31, SGTR WITH LOSS OF REACTOR COOLANT \\u8209? SUBCOOLED RECOVERY DESIRED, Step 1",1,596,"0POP05\\u8209?EO\\u8209?EC31, SGTR WITH LOSS OF REACTOR COOLANT \\u8209? SUBCOOLED RECOVERY DESIRED, Step 1"]
[597,10,1,597,10]
[598,10,1,598,10]
[599,"2.b",1,599,"2.b"]
[600,"0POP05\\u8209?EO\\u8209?EC31, SGTR WITH LOSS OF REACTOR COOLANT \\u8209? SUBCOOLED RECOVERY DESIRED, Step 1",1,600,"0POP05\\u8209?EO\\u8209?EC31, SGTR WITH LOSS OF REACTOR COOLANT \\u8209? SUBCOOLED RECOVERY DESIRED, Step 1"]
[601,"0POP05\\u8209?EO\\u8209?EO30, STEAM GENERATOR TUBE RUPTURE, Step 1",1,601,"0POP05\\u8209?EO\\u8209?EO30, STEAM GENERATOR TUBE RUPTURE, Step 1"]
[602,"0POP05\\u8209?EO\\u8209?EC31, SGTR WITH LOSS OF REACTOR COOLANT \\u8209? SUBCOOLED RECOVERY DESIRED",1,602,"0POP05\\u8209?EO\\u8209?EC31, SGTR WITH LOSS OF REACTOR COOLANT \\u8209? SUBCOOLED RECOVERY DESIRED"]
[603,"ADDENDUM 1, SG PORV LOCAL OPERATION",1,603,"ADDENDUM 1, SG PORV LOCAL OPERATION"]
[604,"7.g",1,604,"7.g"]
[605,8,1,605,8]
[606,8,1,606,8]
[607,8,1,607,8]
[608,8,1,608,8]
[609,"0POP05\\u8209?EO\\u8209?EC31, SGTR WITH LOSS OF REACTOR COOLANT \\u8209? SUBCOOLED RECOVERY DESIRED, Step 1",1,609,"0POP05\\u8209?EO\\u8209?EC31, SGTR WITH LOSS OF REACTOR COOLANT \\u8209? SUBCOOLED RECOVERY DESIRED, Step 1"]
[610,5,1,610,5]
[611,5,1,611,5]
[612,13,1,612,13]
[613,14,1,613,14]
[614,14,1,614,14]
[615,15,1,615,15]
[616,16,1,616,16]
[617,"ADDENDUM 3, REACTOR COOLANT PUMP SEAL LEAKOFF VALUES",1,617,"ADDENDUM 3, REACTOR COOLANT PUMP SEAL LEAKOFF VALUES"]
[618,11,1,618,11]
[619,11,1,619,11]
[620,17,1,620,17]
[621,"ADDENDUM 1, SG PORV LOCAL OPERATION",1,621,"ADDENDUM 1, SG PORV LOCAL OPERATION"]
[622,18,1,622,18]
[623,18,1,623,18]
[624,"0POP05\\u8209?EO\\u8209?EC31, SGTR WITH LOSS OF REACTOR COOLANT \\u8209? SUBCOOLED RECOVERY DESIRED, Step 1",1,624,"0POP05\\u8209?EO\\u8209?EC31, SGTR WITH LOSS OF REACTOR COOLANT \\u8209? SUBCOOLED RECOVERY DESIRED, Step 1"]
[625,17,1,625,17]
[626,1,1,626,1]
[627,2,1,627,2]
[628,"ADDENDUM 4, VITAL DC BUS MONITORING, Step 1",1,628,"ADDENDUM 4, VITAL DC BUS MONITORING, Step 1"]
[629,7,1,629,7]
[630,"0POP05\\u8209?EO\\u8209?FO03, HEAT SINK CRITICAL SAFETY FUNCTION STATUS TREE",1,630,"0POP05\\u8209?EO\\u8209?FO03, HEAT SINK CRITICAL SAFETY FUNCTION STATUS TREE"]
[631,"0POP05\\u8209?EO\\u8209?EC00, LOSS OF ALL AC POWER",1,631,"0POP05\\u8209?EO\\u8209?EC00, LOSS OF ALL AC POWER"]
[632,"3.h and 3.i",1,632,"3.h and 3.i"]
[633,4,1,633,4]
[634,"3.c through 3.g",1,634,"3.c through 3.g"]
[635,7,1,635,7]
[636,7,1,636,7]
[637,7,1,637,7]
[638,7,1,638,7]
[639,"ADDENDUM 1, TRANSFER ESF BUSSES TO THE EMERGENCY TRANSFORMER",1,639,"ADDENDUM 1, TRANSFER ESF BUSSES TO THE EMERGENCY TRANSFORMER"]
[640,"ADDENDUM 4, VITAL DC BUS MONITORING",1,640,"ADDENDUM 4, VITAL DC BUS MONITORING"]
[641,"ADDENDUM 4, VITAL DC BUS MONITORING",1,641,"ADDENDUM 4, VITAL DC BUS MONITORING"]
[642,"ADDENDUM 2, EQUIPMENT IN PULL TO LOCK",{"$f":"IF(B643=E643,1,0)","v":1},642,"ADDENDUM 2, EQUIPMENT IN PULL TO LOCK"]
[643,8,1,643,8]
[644,"ADDENDUM 3, FAILING AIR TO MSIVs AND MSIBs",1,644,"ADDENDUM 3, FAILING AIR TO MSIVs AND MSIBs"]
[645,"ADDENDUM 6, SG PORV LOCAL OPERATION",1,645,"ADDENDUM 6, SG PORV LOCAL OPERATION"]
[646,"ADDENDUM 6, SG PORV LOCAL OPERATION",1,646,"ADDENDUM 6, SG PORV LOCAL OPERATION"]
[647,"ADDENDUM 5, EMERGENCY MAKEUP TO AFWST FROM FIRE PROTECTION SYSTEM",1,647,"ADDENDUM 5, EMERGENCY MAKEUP TO AFWST FROM FIRE PROTECTION SYSTEM"]
[648,17,1,648,17]
[649,17,1,649,17]
[650,16,1,650,16]
[651,16,1,651,16]
[652,16,1,652,16]
[653,16,1,653,16]
[654,16,1,654,16]
[655,16,1,655,16]
[656,16,1,656,16]
[657,16,1,657,16]
[658,"ADDENDUM 6, SG PORV LOCAL OPERATION",1,658,"ADDENDUM 6, SG PORV LOCAL OPERATION"]
[659,"ADDENDUM 6, SG PORV LOCAL OPERATION",1,659,"ADDENDUM 6, SG PORV LOCAL OPERATION"]
[660,"16.e",1,660,"16.e"]
[661,17,1,661,17]
[662,17,1,662,17]
[663,17,1,663,17]
[664,17,1,664,17]
[665,"16.b",1,665,"16.b"]
[666,"16.c",1,666,"16.c"]
[667,"16.d",1,667,"16.d"]
[668,"16.e",1,668,"16.e"]
[669,17,1,669,17]
[670,17,1,670,17]
[671,"ADDENDUM 4, VITAL DC BUS MONITORING, Step 2",1,671,"ADDENDUM 4, VITAL DC BUS MONITORING, Step 2"]
[672,"17.b and 17.c",1,672,"17.b and 17.c"]
[673,18,1,673,18]
[674,"19.b, 20, 21 and 22",1,674,"19.b, 20, 21 and 22"]
[675,23,1,675,23]
[676,"ADDENDUM 7, PHASE A ISOLATION VERIFICATION",1,676,"ADDENDUM 7, PHASE A ISOLATION VERIFICATION"]
[677,"ADDENDUM 8, PHASE A OCIV VERIFICATION",1,677,"ADDENDUM 8, PHASE A OCIV VERIFICATION"]
[678,"ADDENDUM 9, EMERGENCY MAKEUP TO SFP FROM FIRE PROTECTION SYSTEM",1,678,"ADDENDUM 9, EMERGENCY MAKEUP TO SFP FROM FIRE PROTECTION SYSTEM"]
[679,11,1,679,11]
[680,11,1,680,11]
[681,"ADDENDUM 6, SG PORV LOCAL OPERATION",1,681,"ADDENDUM 6, SG PORV LOCAL OPERATION"]
[682,"ADDENDUM 10, EMERGENCY ELECTRICAL LOADING REQUIREMENTS",1,682,"ADDENDUM 10, EMERGENCY ELECTRICAL LOADING REQUIREMENTS"]
[683,"ADDENDUM 4, VITAL DC BUS MONITORING, Step 6",1,683,"ADDENDUM 4, VITAL DC BUS MONITORING, Step 6"]
[684,"ADDENDUM 4, VITAL DC BUS MONITORING",1,684,"ADDENDUM 4, VITAL DC BUS MONITORING"]
[685,"ADDENDUM 11, RESETTING ESF SEQUENCER MODE I LOGIC",1,685,"ADDENDUM 11, RESETTING ESF SEQUENCER MODE I LOGIC"]
[686,"28.f",1,686,"28.f"]
[687,"28.g",1,687,"28.g"]
[688,"ADDENDUM 4, VITAL DC BUS MONITORING",1,688,"ADDENDUM 4, VITAL DC BUS MONITORING"]
[689,"0POP05\\u8209?EO\\u8209?EC01, LOSS OF ALL AC POWER RECOVERY WITHOUT SI REQUIRED, Step 1",1,689,"0POP05\\u8209?EO\\u8209?EC01, LOSS OF ALL AC POWER RECOVERY WITHOUT SI REQUIRED, Step 1"]
[690,"0POP05\\u8209?EO\\u8209?EC02, LOSS OF ALL AC POWER RECOVERY WITH SI REQUIRED, Step 1",1,690,"0POP05\\u8209?EO\\u8209?EC02, LOSS OF ALL AC POWER RECOVERY WITH SI REQUIRED, Step 1"]
[691,"0POP05\\u8209?EO\\u8209?EC02, LOSS OF ALL AC POWER RECOVERY WITH SI REQUIRED, Step 1",1,691,"0POP05\\u8209?EO\\u8209?EC02, LOSS OF ALL AC POWER RECOVERY WITH SI REQUIRED, Step 1"]
[692,"0POP05\\u8209?EO\\u8209?EC02, LOSS OF ALL AC POWER RECOVERY WITH SI REQUIRED, Step 1",1,692,"0POP05\\u8209?EO\\u8209?EC02, LOSS OF ALL AC POWER RECOVERY WITH SI REQUIRED, Step 1"]
[693,"PROCEDURE STEPS",1,693,"PROCEDURE STEPS"]
[694,"?",1,694,"?"]
[695,2,1,695,2]
[696,3,1,696,3]
[697,"ADDENDUM 3, FAILING AIR TO MSIVs AND MSIBs",1,697,"ADDENDUM 3, FAILING AIR TO MSIVs AND MSIBs"]
[698,"ADDENDUM 3, FAILING AIR TO MSIVs AND MSIBs",1,698,"ADDENDUM 3, FAILING AIR TO MSIVs AND MSIBs"]
[699,11,1,699,11]
[700,11,1,700,11]
[701,2,1,701,2]
[702,2,1,702,2]
[703,4,1,703,4]
[704,4,1,704,4]
[705,"ADDENDUM 1, CCW VALVE ALIGNMENT",1,705,"ADDENDUM 1, CCW VALVE ALIGNMENT"]
[706,"ADDENDUM 3, ESTABLISHING ALTERNATE CHARGING FLOW CONTROL",{"$f":"IF(B707=E707,1,0)","v":1},706,"ADDENDUM 3, ESTABLISHING ALTERNATE CHARGING FLOW CONTROL"]
[707,"4.b.3",1,707,"4.b.3"]
[708,"ADDENDUM 2, ESTABLISHING GRAVITY FEED FROM BORIC ACID TANK",1,708,"ADDENDUM 2, ESTABLISHING GRAVITY FEED FROM BORIC ACID TANK"]
[709,"4.b.1)c",1,709,"4.b.1)c"]
[710,"ADDENDUM 3, ESTABLISHING ALTERNATE CHARGING FLOW CONTROL",1,710,"ADDENDUM 3, ESTABLISHING ALTERNATE CHARGING FLOW CONTROL"]
[711,7,1,711,7]
[712,"0POP05\\u8209?EO\\u8209?EC02, LOSS OF ALL AC POWER RECOVERY WITH SI REQUIRED, Step 1",1,712,"0POP05\\u8209?EO\\u8209?EC02, LOSS OF ALL AC POWER RECOVERY WITH SI REQUIRED, Step 1"]
[713,"0POP05\\u8209?EO\\u8209?EC02, LOSS OF ALL AC POWER RECOVERY WITH SI REQUIRED, Step 1",1,713,"0POP05\\u8209?EO\\u8209?EC02, LOSS OF ALL AC POWER RECOVERY WITH SI REQUIRED, Step 1"]
[714,10,1,714,10]
[715,10,1,715,10]
[716,"ADDENDUM 4, SG PORV LOCAL OPERATION",1,716,"ADDENDUM 4, SG PORV LOCAL OPERATION"]
[717,"ADDENDUM 5, ESTABLISHING NORMAL RCP SEAL COOLING",1,717,"ADDENDUM 5, ESTABLISHING NORMAL RCP SEAL COOLING"]
[718,14,1,718,14]
[719,14,1,719,14]
[720,14,1,720,14]
[721,"ADDENDUM 6, ESTABLISHING NORMAL LETDOWN",1,721,"ADDENDUM 6, ESTABLISHING NORMAL LETDOWN"]
[722,"ADDENDUM 7, ESTABLISHING EXCESS LETDOWN",1,722,"ADDENDUM 7, ESTABLISHING EXCESS LETDOWN"]
[723,"14.b",1,723,"14.b"]
[724,15,1,724,15]
[725,"0POP05\\u8209?EO\\u8209?EC02, LOSS OF ALL AC POWER RECOVERY WITH SI REQUIRED, Step 1",1,725,"0POP05\\u8209?EO\\u8209?EC02, LOSS OF ALL AC POWER RECOVERY WITH SI REQUIRED, Step 1"]
[726,"ADDENDUM 8, SATURATION CURVE",1,726,"ADDENDUM 8, SATURATION CURVE"]
[727,"18.b",1,727,"18.b"]
[728,"18.c",1,728,"18.c"]
[729,19,1,729,19]
[730,"0POP05\\u8209?EO\\u8209?EC02, LOSS OF ALL AC POWER RECOVERY WITH SI REQUIRED, Step 1",1,730,"0POP05\\u8209?EO\\u8209?EC02, LOSS OF ALL AC POWER RECOVERY WITH SI REQUIRED, Step 1"]
[731,"0POP05\\u8209?EO\\u8209?EC02, LOSS OF ALL AC POWER RECOVERY WITH SI REQUIRED, Step 1",1,731,"0POP05\\u8209?EO\\u8209?EC02, LOSS OF ALL AC POWER RECOVERY WITH SI REQUIRED, Step 1"]
[732,"0POP05\\u8209?EO\\u8209?ES02, NATURAL CIRCULATION COOLDOWN, Step 1",1,732,"0POP05\\u8209?EO\\u8209?ES02, NATURAL CIRCULATION COOLDOWN, Step 1"]
[733,"0POP05\\u8209?EO\\u8209?ES05, NATURAL CIRCULATION COOLDOWN WITHOUT LETDOWN, Step 1",1,733,"0POP05\\u8209?EO\\u8209?ES05, NATURAL CIRCULATION COOLDOWN WITHOUT LETDOWN, Step 1"]
[734,11,1,734,11]
[735,"0POP05\\u8209?EO\\u8209?ES13, TRANSFER TO COLD LEG RECIRCULATION",1,735,"0POP05\\u8209?EO\\u8209?ES13, TRANSFER TO COLD LEG RECIRCULATION"]
[736,5,1,736,5]
[737,5,1,737,5]
[738,5,1,738,5]
[739,5,1,739,5]
[740,5,1,740,5]
[741,5,1,741,5]
[742,7,1,742,7]
[743,7,1,743,7]
[744,"ADDENDUM 1, PHASE A ISOLATION VERIFICATION",1,744,"ADDENDUM 1, PHASE A ISOLATION VERIFICATION"]
[745,"ADDENDUM 2, PHASE A OCIV VERIFICATION",1,745,"ADDENDUM 2, PHASE A OCIV VERIFICATION"]
[748,"ADDENDUM 3, ESTABLISHING NORMAL RCP SEAL COOLING",1,748,"ADDENDUM 3, ESTABLISHING NORMAL RCP SEAL COOLING"]
[746,12,1,746,12]
[747,12,1,747,12]
[749,"0POP05\\u8209?EO\\u8209?EO10, LOSS OF REACTOR OR SECONDARY COOLANT, Step 1",1,749,"0POP05\\u8209?EO\\u8209?EO10, LOSS OF REACTOR OR SECONDARY COOLANT, Step 1"]
[750,"0POP05\\u8209?EO\\u8209?EC12, LOCA OUTSIDE CONTAINMENT",1,750,"0POP05\\u8209?EO\\u8209?EC12, LOCA OUTSIDE CONTAINMENT"]
[751,"ADDENDUM 1, EMERGENCY COOLANT RECIRCULATION POWER SUPPLIES",1,751,"ADDENDUM 1, EMERGENCY COOLANT RECIRCULATION POWER SUPPLIES"]
[752,2,1,752,2]
[753,29,1,753,29]
[754,6,1,754,6]
[755,"8.e",1,755,"8.e"]
[756,"ADDENDUM 2, SG PORV LOCAL OPERATION",1,756,"ADDENDUM 2, SG PORV LOCAL OPERATION"]
[757,"8.i",1,757,"8.i"]
[758,9,1,758,9]
[759,22,1,759,22]
[760,"ADDENDUM 3, RESETTING ESF SEQUENCER MODE I LOGIC",1,760,"ADDENDUM 3, RESETTING ESF SEQUENCER MODE I LOGIC"]
[761,"ADDENDUM 4, MCC POWER RESTORATION",1,761,"ADDENDUM 4, MCC POWER RESTORATION"]
[762,14,1,762,14]
[763,5,1,763,5]
[764,15,1,764,15]
[765,15,1,765,15]
[766,16,1,766,16]
[767,16,1,767,16]
[768,16,1,768,16]
[769,16,1,769,16]
[770,22,{"$f":"IF(B771=E771,1,0)","v":1},770,22]
[771,"ADDENDUM 5, ESTABLISHING MINIMUM SI FLOW",1,771,"ADDENDUM 5, ESTABLISHING MINIMUM SI FLOW"]
[772,22,1,772,22]
[773,"ADDENDUM 6, ESTABLISHING ALTERNATE CHARGING FLOW CONTROL",1,773,"ADDENDUM 6, ESTABLISHING ALTERNATE CHARGING FLOW CONTROL"]
[774,"ADDENDUM 6, ESTABLISHING ALTERNATE CHARGING FLOW CONTROL",1,774,"ADDENDUM 6, ESTABLISHING ALTERNATE CHARGING FLOW CONTROL"]
[775,"ADDENDUM 6, ESTABLISHING ALTERNATE CHARGING FLOW CONTROL",1,775,"ADDENDUM 6, ESTABLISHING ALTERNATE CHARGING FLOW CONTROL"]
[776,"21.c",1,776,"21.c"]
[777,"21.c",1,777,"21.c"]
[778,24,1,778,24]
[779,"23.b",1,779,"23.b"]
[780,"23.d",1,780,"23.d"]
[781,25,1,781,25]
[782,"25.b, 25.c and 25.d",1,782,"25.b, 25.c and 25.d"]
[783,26,1,783,26]
[784,27,1,784,27]
[785,"ADDENDUM 9, REACTOR COOLANT PUMP SEAL LEAKOFF VALUES",1,785,"ADDENDUM 9, REACTOR COOLANT PUMP SEAL LEAKOFF VALUES"]
[786,37,1,786,37]
[787,1,1,787,1]
[788,"30.e, 30.f, 30.g, 30.h and 30.i",1,788,"30.e, 30.f, 30.g, 30.h and 30.i"]
[789,31,1,789,31]
[790,32,1,790,32]
[791,32,1,791,32]
[792,"31.b",1,792,"31.b"]
[793,"ADDENDUM 2, SG PORV LOCAL OPERATION",1,793,"ADDENDUM 2, SG PORV LOCAL OPERATION"]
[794,"31.e",1,794,"31.e"]
[795,"32.a",1,795,"32.a"]
[796,"ADDENDUM 2, SG PORV LOCAL OPERATION",1,796,"ADDENDUM 2, SG PORV LOCAL OPERATION"]
[797,"32.d",1,797,"32.d"]
[798,"33.b, 33.c and 33.d",1,798,"33.b, 33.c and 33.d"]
[799,34,1,799,34]
[800,35,1,800,35]
[801,"ADDENDUM 9, REACTOR COOLANT PUMP SEAL LEAKOFF VALUES",1,801,"ADDENDUM 9, REACTOR COOLANT PUMP SEAL LEAKOFF VALUES"]
[802,"ADDENDUM 2, SG PORV LOCAL OPERATION",1,802,"ADDENDUM 2, SG PORV LOCAL OPERATION"]
[803,35,1,803,35]
[804,"ADDENDUM 2, SG PORV LOCAL OPERATION",1,804,"ADDENDUM 2, SG PORV LOCAL OPERATION"]
[805,"ADDENDUM 8, ESTABLISHING CONTAINMENT H2 MONITORING",1,805,"ADDENDUM 8, ESTABLISHING CONTAINMENT H2 MONITORING"]
[806,"38.c and 38.d",1,806,"38.c and 38.d"]
[807,39,1,807,39]
[808,39,1,808,39]
[809,"1.c",1,809,"1.c"]
[810,5,1,810,5]
[811,4,1,811,4]
[812,5,1,812,5]
[813,5,1,813,5]
[814,4,1,814,4]
[815,6,1,815,6]
[816,"0POP05\\u8209?EO\\u8209?EO10, LOSS OF REACTOR OR SECONDARY COOLANT, Step 1",1,816,"0POP05\\u8209?EO\\u8209?EO10, LOSS OF REACTOR OR SECONDARY COOLANT, Step 1"]
[817,"0POP05\\u8209?EO\\u8209?EC11, LOSS OF EMERGENCY COOLANT RECIRCULATION, Step 1",1,817,"0POP05\\u8209?EO\\u8209?EC11, LOSS OF EMERGENCY COOLANT RECIRCULATION, Step 1"]
[818,"ADDENDUM 1, FAILING AIR TO MSIVs AND MSIBs",1,818,"ADDENDUM 1, FAILING AIR TO MSIVs AND MSIBs"]
[819,2,1,819,2]
[820,2,1,820,2]
[821,"0POP05\\u8209?EO\\u8209?FRH1, RESPONSE TO LOSS OF SECONDARY HEAT SINK",1,821,"0POP05\\u8209?EO\\u8209?FRH1, RESPONSE TO LOSS OF SECONDARY HEAT SINK"]
[822,"2.c",1,822,"2.c"]
[823,4,1,823,4]
[824,4,1,824,4]
[825,5,1,825,5]
[826,"ADDENDUM 2, RESETTING ESF SEQUENCER MODE I LOGIC",1,826,"ADDENDUM 2, RESETTING ESF SEQUENCER MODE I LOGIC"]
[827,"ADDENDUM 3, MCC POWER RESTORATION",1,827,"ADDENDUM 3, MCC POWER RESTORATION"]
[828,"0POP05\\u8209?EO\\u8209?EO30, STEAM GENERATOR TUBE RUPTURE, Step 1",1,828,"0POP05\\u8209?EO\\u8209?EO30, STEAM GENERATOR TUBE RUPTURE, Step 1"]
[829,"0POP05\\u8209?EO\\u8209?EO30, STEAM GENERATOR TUBE RUPTURE, Step 1",1,829,"0POP05\\u8209?EO\\u8209?EO30, STEAM GENERATOR TUBE RUPTURE, Step 1"]
[830,11,1,830,11]
[831,11,1,831,11]
[832,"0POP05\\u8209?EO\\u8209?EO10, LOSS OF REACTOR OR SECONDARY COOLANT, Step 1",1,832,"0POP05\\u8209?EO\\u8209?EO10, LOSS OF REACTOR OR SECONDARY COOLANT, Step 1"]
[833,11,1,833,11]
[834,11,{"$f":"IF(B835=E835,1,0)","v":1},834,11]
[835,12,1,835,12]
[836,"11.c",1,836,"11.c"]
[837,12,1,837,12]
[838,"0POP05\\u8209?EO\\u8209?ES13, TRANSFER TO COLD LEG RECIRCULATION, Step 1",1,838,"0POP05\\u8209?EO\\u8209?ES13, TRANSFER TO COLD LEG RECIRCULATION, Step 1"]
[839,17,1,839,17]
[840,18,1,840,18]
[841,"ADDENDUM 4, ESTABLISHING ALTERNATE CHARGING FLOW CONTROL",1,841,"ADDENDUM 4, ESTABLISHING ALTERNATE CHARGING FLOW CONTROL"]
[842,"ADDENDUM 4, ESTABLISHING ALTERNATE CHARGING FLOW CONTROL",1,842,"ADDENDUM 4, ESTABLISHING ALTERNATE CHARGING FLOW CONTROL"]
[843,"ADDENDUM 4, ESTABLISHING ALTERNATE CHARGING FLOW CONTROL",1,843,"ADDENDUM 4, ESTABLISHING ALTERNATE CHARGING FLOW CONTROL"]
[844,"18.c",1,844,"18.c"]
[845,"18.c",1,845,"18.c"]
[846,21,1,846,21]
[847,2,1,847,2]
[848,2,1,848,2]
[849,2,1,849,2]
[850,2,1,850,2]
[851,"19.b",1,851,"19.b"]
[852,2,1,852,2]
[853,2,1,853,2]
[854,2,1,854,2]
[855,2,1,855,2]
[856,"ADDENDUM 5, ESTABLISHING NORMAL LETDOWN",1,856,"ADDENDUM 5, ESTABLISHING NORMAL LETDOWN"]
[857,"ADDENDUM 6, ESTABLISHING EXCESS LETDOWN",1,857,"ADDENDUM 6, ESTABLISHING EXCESS LETDOWN"]
[858,"24.b",1,858,"24.b"]
[859,25,1,859,25]
[860,"ADDENDUM 7, ESTABLISHING NORMAL RCP SEAL COOLING",1,860,"ADDENDUM 7, ESTABLISHING NORMAL RCP SEAL COOLING"]
[861,30,1,861,30]
[862,30,1,862,30]
[863,30,1,863,30]
[864,"ADDENDUM 8, EMERGENCY ELECTRICAL LOADING REQUIREMENTS",1,864,"ADDENDUM 8, EMERGENCY ELECTRICAL LOADING REQUIREMENTS"]
[865,32,1,865,32]
[866,"ADDENDUM 9, SATURATION CURVE",1,866,"ADDENDUM 9, SATURATION CURVE"]
[867,"32.b and 32.c",1,867,"32.b and 32.c"]
[868,33,1,868,33]
[869,"ADDENDUM 8, EMERGENCY ELECTRICAL LOADING REQUIREMENTS",1,869,"ADDENDUM 8, EMERGENCY ELECTRICAL LOADING REQUIREMENTS"]
[870,"33.b",1,870,"33.b"]
[871,"33.c",1,871,"33.c"]
[872,"33.d",1,872,"33.d"]
[873,2,1,873,2]
[874,2,1,874,2]
[875,2,1,875,2]
[876,2,1,876,2]
[877,38,1,877,38]
[878,38,1,878,38]
[879,36,1,879,36]
[880,42,1,880,42]
[881,"ADDENDUM 11, REACTOR COOLANT PUMP SEAL LEAKOFF VALUES",1,881,"ADDENDUM 11, REACTOR COOLANT PUMP SEAL LEAKOFF VALUES"]
[882,36,1,882,36]
[883,44,1,883,44]
[884,"ADDENDUM 1, MCC POWER RESTORATION",1,884,"ADDENDUM 1, MCC POWER RESTORATION"]
[885,"ADDENDUM 2, RESETTING ESF SEQUENCER MODE I LOGIC",1,885,"ADDENDUM 2, RESETTING ESF SEQUENCER MODE I LOGIC"]
[886,10,1,886,10]
[887,"ADDENDUM 3, EMERGENCY ELECTRICAL LOADING REQUIREMENTS",1,887,"ADDENDUM 3, EMERGENCY ELECTRICAL LOADING REQUIREMENTS"]
[888,13,1,888,13]
[889,13,1,889,13]
[890,"12.c.1",1,890,"12.c.1"]
[891,"12.c.2",1,891,"12.c.2"]
[892,"12.c",1,892,"12.c"]
[893,13,1,893,13]
[894,13,1,894,13]
[895,"13.b",1,895,"13.b"]
[896,14,1,896,14]
[897,15,1,897,15]
[898,"0POP05\\u8209?EO\\u8209?EC12, LOCA OUTSIDE CONTAINMENT, Step 1",{"$f":"IF(B899=E899,1,0)","v":1},898,"0POP05\\u8209?EO\\u8209?EC12, LOCA OUTSIDE CONTAINMENT, Step 1"]
[899,"ADDENDUM 4, ESTABLISHING ALTERNATE MAXIMUM CHARGING FLOW CONTROL",1,899,"ADDENDUM 4, ESTABLISHING ALTERNATE MAXIMUM CHARGING FLOW CONTROL"]
[900,"ADDENDUM 4, ESTABLISHING ALTERNATE MAXIMUM CHARGING FLOW CONTROL",1,900,"ADDENDUM 4, ESTABLISHING ALTERNATE MAXIMUM CHARGING FLOW CONTROL"]
[901,"ADDENDUM 4, ESTABLISHING ALTERNATE MAXIMUM CHARGING FLOW CONTROL",1,901,"ADDENDUM 4, ESTABLISHING ALTERNATE MAXIMUM CHARGING FLOW CONTROL"]
[902,"ADDENDUM 4, ESTABLISHING ALTERNATE MAXIMUM CHARGING FLOW CONTROL",1,902,"ADDENDUM 4, ESTABLISHING ALTERNATE MAXIMUM CHARGING FLOW CONTROL"]
[903,"16.d",1,903,"16.d"]
[904,"16.d",1,904,"16.d"]
[905,"16.d",1,905,"16.d"]
[906,"0POP05\\u8209?EO\\u8209?EO20, FAULTED STEAM GENERATOR ISOLATION, Step 1",1,906,"0POP05\\u8209?EO\\u8209?EO20, FAULTED STEAM GENERATOR ISOLATION, Step 1"]
[907,"0POP05\\u8209?EO\\u8209?EO30, STEAM GENERATOR TUBE RUPTURE, Step 1",1,907,"0POP05\\u8209?EO\\u8209?EO30, STEAM GENERATOR TUBE RUPTURE, Step 1"]
[908,"19.e",1,908,"19.e"]
[909,"ADDENDUM 5, SG PORV LOCAL OPERATION",1,909,"ADDENDUM 5, SG PORV LOCAL OPERATION"]
[910,"19.j",1,910,"19.j"]
[911,20,1,911,20]
[912,20,1,912,20]
[913,"0POP05\\u8209?EO\\u8209?EC32, SGTR WITH LOSS OF REACTOR COOLANT \\u8209? SATURATED RECOVERY DESIRED, Step 1",1,913,"0POP05\\u8209?EO\\u8209?EC32, SGTR WITH LOSS OF REACTOR COOLANT \\u8209? SATURATED RECOVERY DESIRED, Step 1"]
[914,"ADDENDUM 6, CONTAINMENT LEVEL VS RWST LEVEL",1,914,"ADDENDUM 6, CONTAINMENT LEVEL VS RWST LEVEL"]
[915,"0POP05\\u8209?EO\\u8209?EC32, SGTR WITH LOSS OF REACTOR COOLANT \\u8209? SATURATED RECOVERY DESIRED, Step 1",1,915,"0POP05\\u8209?EO\\u8209?EC32, SGTR WITH LOSS OF REACTOR COOLANT \\u8209? SATURATED RECOVERY DESIRED, Step 1"]
[916,30,1,916,30]
[917,26,1,917,26]
[918,24,1,918,24]
[919,24,1,919,24]
[920,"23.d",1,920,"23.d"]
[921,24,1,921,24]
[922,24,1,922,24]
[923,30,1,923,30]
[924,23,1,924,23]
[925,23,1,925,23]
[926,25,1,926,25]
[927,25,1,927,25]
[928,"25.a",1,928,"25.a"]
[929,23,1,929,23]
[930,23,1,930,23]
[931,30,1,931,30]
[932,30,1,932,30]
[933,"25.a",1,933,"25.a"]
[934,26,1,934,26]
[935,30,1,935,30]
[936,30,1,936,30]
[937,"27.b",1,937,"27.b"]
[938,31,1,938,31]
[939,"28.a",1,939,"28.a"]
[940,"28.c",1,940,"28.c"]
[941,31,1,941,31]
[942,23,1,942,23]
[943,23,1,943,23]
[944,23,1,944,23]
[945,23,1,945,23]
[946,"31.c",1,946,"31.c"]
[947,32,1,947,32]
[948,"ADDENDUM 3, EMERGENCY ELECTRICAL LOADING REQUIREMENTS",1,948,"ADDENDUM 3, EMERGENCY ELECTRICAL LOADING REQUIREMENTS"]
[949,"32.b",1,949,"32.b"]
[950,"32.c",1,950,"32.c"]
[951,"32.d",1,951,"32.d"]
[952,"ADDENDUM 8, SECONDARY CONTAMINATION CONTROL",1,952,"ADDENDUM 8, SECONDARY CONTAMINATION CONTROL"]
[953,"ADDENDUM 9, ESTABLISHING NORMAL RCP SEAL COOLING",1,953,"ADDENDUM 9, ESTABLISHING NORMAL RCP SEAL COOLING"]
[954,36,1,954,36]
[955,36,1,955,36]
[956,36,1,956,36]
[957,"36.b and 36.c",1,957,"36.b and 36.c"]
[958,37,1,958,37]
[959,40,1,959,40]
[960,"ADDENDUM 12, REACTOR COOLANT PUMP SEAL LEAKOFF VALUES",1,960,"ADDENDUM 12, REACTOR COOLANT PUMP SEAL LEAKOFF VALUES"]
[961,42,1,961,42]
[962,"ADDENDUM 11, ESTABLISHING CONTAINMENT H2 MONITORING",{"$f":"IF(B963=E963,1,0)","v":1},962,"ADDENDUM 11, ESTABLISHING CONTAINMENT H2 MONITORING"]
[963,"42.c and 42.d",1,963,"42.c and 42.d"]
[964,43,1,964,43]
[965,43,1,965,43]
[966,14,1,966,14]
[967,"0POP05\\u8209?EO\\u8209?EC31, SGTR WITH LOSS OF REACTOR COOLANT \\u8209? SUBCOOLED RECOVERY DESIRED",1,967,"0POP05\\u8209?EO\\u8209?EC31, SGTR WITH LOSS OF REACTOR COOLANT \\u8209? SUBCOOLED RECOVERY DESIRED"]
[968,"2.b",1,968,"2.b"]
[969,3,1,969,3]
[970,4,1,970,4]
[971,"0POP05\\u8209?EO\\u8209?EO20, FAULTED STEAM GENERATOR ISOLATION, Step 1",1,971,"0POP05\\u8209?EO\\u8209?EO20, FAULTED STEAM GENERATOR ISOLATION, Step 1"]
[972,"0POP05\\u8209?EO\\u8209?EO30, STEAM GENERATOR TUBE RUPTURE, Step 1",1,972,"0POP05\\u8209?EO\\u8209?EO30, STEAM GENERATOR TUBE RUPTURE, Step 1"]
[973,"6.e",1,973,"6.e"]
[974,"ADDENDUM 1, SG PORV LOCAL OPERATION",1,974,"ADDENDUM 1, SG PORV LOCAL OPERATION"]
[975,"6.j",1,975,"6.j"]
[976,7,1,976,7]
[977,7,1,977,7]
[978,16,1,978,16]
[979,12,1,979,12]
[980,10,1,980,10]
[981,10,1,981,10]
[982,"9.d",1,982,"9.d"]
[983,10,1,983,10]
[984,10,1,984,10]
[985,16,1,985,16]
[986,9,1,986,9]
[987,9,1,987,9]
[988,11,1,988,11]
[989,11,1,989,11]
[990,"11.a",1,990,"11.a"]
[991,9,1,991,9]
[992,9,1,992,9]
[993,16,1,993,16]
[994,16,1,994,16]
[995,"11.a",1,995,"11.a"]
[996,12,1,996,12]
[997,16,1,997,16]
[998,16,1,998,16]
[999,"13.b",1,999,"13.b"]
[1000,"ADDENDUM 2, SATURATION CURVE",1,1000,"ADDENDUM 2, SATURATION CURVE"]
[1001,"ADDENDUM 2, SATURATION CURVE",1,1001,"ADDENDUM 2, SATURATION CURVE"]
[1002,"14.a",1,1002,"14.a"]
[1003,"ADDENDUM 2, SATURATION CURVE",1,1003,"ADDENDUM 2, SATURATION CURVE"]
[1004,"14.c",1,1004,"14.c"]
[1005,"17.c, 17.d and 17.e",1,1005,"17.c, 17.d and 17.e"]
[1006,"ADDENDUM 2, SATURATION CURVE",1,1006,"ADDENDUM 2, SATURATION CURVE"]
[1007,"14.c",1,1007,"14.c"]
[1008,"14.c",1,1008,"14.c"]
[1009,9,1,1009,9]
[1010,9,1,1010,9]
[1011,"17.c",1,1011,"17.c"]
[1012,18,1,1012,18]
[1013,"ADDENDUM 3, EMERGENCY ELECTRICAL LOADING REQUIREMENTS",1,1013,"ADDENDUM 3, EMERGENCY ELECTRICAL LOADING REQUIREMENTS"]
[1014,"18.b",1,1014,"18.b"]
[1015,"18.c",1,1015,"18.c"]
[1016,"18.d",1,1016,"18.d"]
[1017,"ADDENDUM 5, ESTABLISHING NORMAL RCP SEAL COOLING",1,1017,"ADDENDUM 5, ESTABLISHING NORMAL RCP SEAL COOLING"]
[1018,22,1,1018,22]
[1019,22,1,1019,22]
[1020,22,1,1020,22]
[1021,"22.b and 22.c",1,1021,"22.b and 22.c"]
[1022,23,1,1022,23]
[1023,26,1,1023,26]
[1024,"ADDENDUM 8, REACTOR COOLANT PUMP SEAL LEAKOFF VALUES",1,1024,"ADDENDUM 8, REACTOR COOLANT PUMP SEAL LEAKOFF VALUES"]
[1025,28,1,1025,28]
[1026,"ADDENDUM 7, ESTABLISHING CONTAINMENT H2 MONITORING",{"$f":"IF(B1027=E1027,1,0)","v":1},1026,"ADDENDUM 7, ESTABLISHING CONTAINMENT H2 MONITORING"]
[1027,"28.c and 28.d",1,1027,"28.c and 28.d"]
[1028,29,1,1028,29]
[1029,29,1,1029,29]
[1030,3,1,1030,3]
[1031,7,1,1031,7]
[1032,"0POP05\\u8209?EO\\u8209?EO30, STEAM GENERATOR TUBE RUPTURE, Step 19",1,1032,"0POP05\\u8209?EO\\u8209?EO30, STEAM GENERATOR TUBE RUPTURE, Step 19"]
[1033,3,1,1033,3]
[1034,3,1,1034,3]
[1035,"0POP05\\u8209?EO\\u8209?EO30, STEAM GENERATOR TUBE RUPTURE, Step 19",1,1035,"0POP05\\u8209?EO\\u8209?EO30, STEAM GENERATOR TUBE RUPTURE, Step 19"]
[1036,4,1,1036,4]
[1037,4,1,1037,4]
[1038,"ADDENDUM 1, ESTABLISHING ALTERNATE CHARGING FLOW CONTROL",1,1038,"ADDENDUM 1, ESTABLISHING ALTERNATE CHARGING FLOW CONTROL"]
[1039,"3.b",1,1039,"3.b"]
[1040,"0POP05\\u8209?EO\\u8209?EO30, STEAM GENERATOR TUBE RUPTURE, Step 20",1,1040,"0POP05\\u8209?EO\\u8209?EO30, STEAM GENERATOR TUBE RUPTURE, Step 20"]
[1041,5,1,1041,5]
[1042,5,1,1042,5]
[1043,"0POP05\\u8209?EO\\u8209?EO30, STEAM GENERATOR TUBE RUPTURE, Step 1",1,1043,"0POP05\\u8209?EO\\u8209?EO30, STEAM GENERATOR TUBE RUPTURE, Step 1"]
[1044,1,1,1044,1]
[1045,"0POP05\\u8209?EO\\u8209?EC31, SGTR WITH LOSS OF REACTOR COOLANT \\u8209? SUBCOOLED RECOVERY DESIRED, Step 1",1,1045,"0POP05\\u8209?EO\\u8209?EC31, SGTR WITH LOSS OF REACTOR COOLANT \\u8209? SUBCOOLED RECOVERY DESIRED, Step 1"]
[1046,"0POP05\\u8209?EO\\u8209?EC31, SGTR WITH LOSS OF REACTOR COOLANT \\u8209? SUBCOOLED RECOVERY DESIRED, Step 1",1,1046,"0POP05\\u8209?EO\\u8209?EC31, SGTR WITH LOSS OF REACTOR COOLANT \\u8209? SUBCOOLED RECOVERY DESIRED, Step 1"]
[1047,"0POP05\\u8209?EO\\u8209?EC31, SGTR WITH LOSS OF REACTOR COOLANT \\u8209? SUBCOOLED RECOVERY DESIRED, Step 1",1,1047,"0POP05\\u8209?EO\\u8209?EC31, SGTR WITH LOSS OF REACTOR COOLANT \\u8209? SUBCOOLED RECOVERY DESIRED, Step 1"]
[1048,2,1,1048,2]
[1049,"ADDENDUM 1, ESTABLISHING ALTERNATE CHARGING FLOW CONTROL",1,1049,"ADDENDUM 1, ESTABLISHING ALTERNATE CHARGING FLOW CONTROL"]
[1050,"ADDENDUM 1, ESTABLISHING ALTERNATE CHARGING FLOW CONTROL",1,1050,"ADDENDUM 1, ESTABLISHING ALTERNATE CHARGING FLOW CONTROL"]
[1051,"ADDENDUM 1, ESTABLISHING ALTERNATE CHARGING FLOW CONTROL",1,1051,"ADDENDUM 1, ESTABLISHING ALTERNATE CHARGING FLOW CONTROL"]
[1052,10,1,1052,10]
[1053,10,1,1053,10]
[1054,"0POP05\\u8209?EO\\u8209?EC31, SGTR WITH LOSS OF REACTOR COOLANT \\u8209? SUBCOOLED RECOVERY DESIRED, Step 1",1,1054,"0POP05\\u8209?EO\\u8209?EC31, SGTR WITH LOSS OF REACTOR COOLANT \\u8209? SUBCOOLED RECOVERY DESIRED, Step 1"]
[1055,"ADDENDUM 2, RESETTING ESF SEQUENCER MODE I LOGIC",1,1055,"ADDENDUM 2, RESETTING ESF SEQUENCER MODE I LOGIC"]
[1056,"ADDENDUM 3, MCC POWER RESTORATION",1,1056,"ADDENDUM 3, MCC POWER RESTORATION"]
[1057,"ADDENDUM 4, ESTABLISHING NORMAL LETDOWN",1,1057,"ADDENDUM 4, ESTABLISHING NORMAL LETDOWN"]
[1058,"ADDENDUM 5, ESTABLISHING EXCESS LETDOWN",1,1058,"ADDENDUM 5, ESTABLISHING EXCESS LETDOWN"]
[1059,"ADDENDUM 6, ESTABLISHING NORMAL LETDOWN WITH PRESSURIZER LOW LEVEL",1,1059,"ADDENDUM 6, ESTABLISHING NORMAL LETDOWN WITH PRESSURIZER LOW LEVEL"]
[1060,"ADDENDUM 5, ESTABLISHING EXCESS LETDOWN",1,1060,"ADDENDUM 5, ESTABLISHING EXCESS LETDOWN"]
[1061,15,1,1061,15]
[1062,18,1,1062,18]
[1063,"ADDENDUM 7, EMERGENCY ELECTRICAL LOADING REQUIREMENTS",1,1063,"ADDENDUM 7, EMERGENCY ELECTRICAL LOADING REQUIREMENTS"]
[1064,"18.b",1,1064,"18.b"]
[1065,"18.c",1,1065,"18.c"]
[1066,"18.d",1,1066,"18.d"]
[1067,"ADDENDUM 8, SECONDARY CONTAMINATION CONTROL",1,1067,"ADDENDUM 8, SECONDARY CONTAMINATION CONTROL"]
[1068,"ADDENDUM 9, ESTABLISHING NORMAL RCP SEAL COOLING",1,1068,"ADDENDUM 9, ESTABLISHING NORMAL RCP SEAL COOLING"]
[1069,22,1,1069,22]
[1070,22,1,1070,22]
[1071,22,1,1071,22]
[1072,"22.b and 22.c",1,1072,"22.b and 22.c"]
[1073,23,1,1073,23]
[1074,10,1,1074,10]
[1075,27,1,1075,27]
[1076,"ADDENDUM 10, SG PORV LOCAL OPERATION",1,1076,"ADDENDUM 10, SG PORV LOCAL OPERATION"]
[1077,"27.f",1,1077,"27.f"]
[1078,28,1,1078,28]
[1079,28,1,1079,28]
[1080,29,1,1080,29]
[1081,29,1,1081,29]
[1082,25,1,1082,25]
[1083,25,1,1083,25]
[1084,33,1,1084,33]
[1085,31,1,1085,31]
[1086,27,1,1086,27]
[1087,27,1,1087,27]
[1088,31,1,1088,31]
[1089,"ADDENDUM 10, SG PORV LOCAL OPERATION",1,1089,"ADDENDUM 10, SG PORV LOCAL OPERATION"]
[1090,36,{"$f":"IF(B1091=E1091,1,0)","v":1},1090,36]
[1091,37,1,1091,37]
[1092,37,1,1092,37]
[1093,38,1,1093,38]
[1094,"ADDENDUM 12, REACTOR COOLANT PUMP SEAL LEAKOFF VALUES",1,1094,"ADDENDUM 12, REACTOR COOLANT PUMP SEAL LEAKOFF VALUES"]
[1095,34,1,1095,34]
[1096,34,1,1096,34]
[1097,1,1,1097,1]
[1098,2,1,1098,2]
[1099,"0POP05\\u8209?EO\\u8209?FO03, HEAT SINK CRITICAL SAFETY FUNCTION STATUS TREE",1,1099,"0POP05\\u8209?EO\\u8209?FO03, HEAT SINK CRITICAL SAFETY FUNCTION STATUS TREE"]
[1100,"ADDENDUM 5, ESTABLISHING FRS1 ALTERNATE CHARGING FLOW CONTROL",1,1100,"ADDENDUM 5, ESTABLISHING FRS1 ALTERNATE CHARGING FLOW CONTROL"]
[1101,"ADDENDUM 6, ESTABLISHING NORMAL LETDOWN",1,1101,"ADDENDUM 6, ESTABLISHING NORMAL LETDOWN"]
[1102,"ADDENDUM 5, ESTABLISHING FRS1 ALTERNATE CHARGING FLOW CONTROL",1,1102,"ADDENDUM 5, ESTABLISHING FRS1 ALTERNATE CHARGING FLOW CONTROL"]
[1103,"ADDENDUM 1, EMERGENCY BORATION USING ALTERNATE AND GRAVITY FEED METHODS",1,1103,"ADDENDUM 1, EMERGENCY BORATION USING ALTERNATE AND GRAVITY FEED METHODS"]
[1104,"ADDENDUM 5, ESTABLISHING FRS1 ALTERNATE CHARGING FLOW CONTROL",1,1104,"ADDENDUM 5, ESTABLISHING FRS1 ALTERNATE CHARGING FLOW CONTROL"]
[1105,"ADDENDUM 5, ESTABLISHING FRS1 ALTERNATE CHARGING FLOW CONTROL",1,1105,"ADDENDUM 5, ESTABLISHING FRS1 ALTERNATE CHARGING FLOW CONTROL"]
[1106,"4.h",1,1106,"4.h"]
[1107,"ADDENDUM 5, ESTABLISHING FRS1 ALTERNATE CHARGING FLOW CONTROL",1,1107,"ADDENDUM 5, ESTABLISHING FRS1 ALTERNATE CHARGING FLOW CONTROL"]
[1108,"ADDENDUM 5, ESTABLISHING FRS1 ALTERNATE CHARGING FLOW CONTROL",1,1108,"ADDENDUM 5, ESTABLISHING FRS1 ALTERNATE CHARGING FLOW CONTROL"]
[1109,"ADDENDUM 7, ESTABLISHING EXCESS LETDOWN",1,1109,"ADDENDUM 7, ESTABLISHING EXCESS LETDOWN"]
[1110,"4.d",1,1110,"4.d"]
[1111,"4.d",1,1111,"4.d"]
[1112,"ADDENDUM 1, EMERGENCY BORATION USING ALTERNATE AND GRAVITY FEED METHODS",1,1112,"ADDENDUM 1, EMERGENCY BORATION USING ALTERNATE AND GRAVITY FEED METHODS"]
[1113,8,1,1113,8]
[1114,"0POP05\\u8209?EO\\u8209?EO00, REACTOR TRIP OR SAFETY INJECTION",1,1114,"0POP05\\u8209?EO\\u8209?EO00, REACTOR TRIP OR SAFETY INJECTION"]
[1115,"ADDENDUM 2, VERIFICATION OF SI EQUIPMENT OPERATION",1,1115,"ADDENDUM 2, VERIFICATION OF SI EQUIPMENT OPERATION"]
[1116,18,1,1116,18]
[1117,10,1,1117,10]
[1118,10,1,1118,10]
[1119,16,1,1119,16]
[1120,"ADDENDUM 4, FAILING AIR TO MSIVs AND MSIBs",1,1120,"ADDENDUM 4, FAILING AIR TO MSIVs AND MSIBs"]
[1121,16,1,1121,16]
[1122,4,1,1122,4]
[1123,20,1,1123,20]
[1124,20,1,1124,20]
[1125,"2.b and 2.c",1,1125,"2.b and 2.c"]
[1126,3,1,1126,3]
[1127,"ADDENDUM 1, ESTABLISHING ALTERNATE MAXIMUM CHARGING FLOW CONTROL",1,1127,"ADDENDUM 1, ESTABLISHING ALTERNATE MAXIMUM CHARGING FLOW CONTROL"]
[1128,"ADDENDUM 1, ESTABLISHING ALTERNATE MAXIMUM CHARGING FLOW CONTROL",1,1128,"ADDENDUM 1, ESTABLISHING ALTERNATE MAXIMUM CHARGING FLOW CONTROL"]
[1129,5,1,1129,5]
[1130,8,1,1130,8]
[1131,7,1,1131,7]
[1132,1,1,1132,1]
[1133,8,1,1133,8]
[1134,"ADDENDUM 2, ESTABLISHING CONTAINMENT H2 MONITORING",1,1134,"ADDENDUM 2, ESTABLISHING CONTAINMENT H2 MONITORING"]
[1135,"8.c and 8.d",1,1135,"8.c and 8.d"]
[1136,9,1,1136,9]
[1137,9,1,1137,9]
[1138,9,1,1138,9]
[1139,9,1,1139,9]
[1140,18,1,1140,18]
[1141,18,1,1141,18]
[1142,"10.d",1,1142,"10.d"]
[1143,9,1,1143,9]
[1144,9,1,1144,9]
[1145,9,1,1145,9]
[1146,9,1,1146,9]
[1147,"11.c",1,1147,"11.c"]
[1148,"11.h",1,1148,"11.h"]
[1149,"11.g",1,1149,"11.g"]
[1150,18,1,1150,18]
[1151,18,1,1151,18]
[1152,18,1,1152,18]
[1153,18,1,1153,18]
[1154,"ADDENDUM 3, SG PORV LOCAL OPERATION",{"$f":"IF(B1155=E1155,1,0)","v":1},1154,"ADDENDUM 3, SG PORV LOCAL OPERATION"]
[1155,18,1,1155,18]
[1156,18,1,1156,18]
[1157,15,1,1157,15]
[1158,"14.e",1,1158,"14.e"]
[1159,"ADDENDUM 3, SG PORV LOCAL OPERATION",1,1159,"ADDENDUM 3, SG PORV LOCAL OPERATION"]
[1160,14,1,1160,14]
[1161,18,1,1161,18]
[1162,18,1,1162,18]
[1163,"ADDENDUM 1, ESTABLISHING ALTERNATE MAXIMUM CHARGING FLOW CONTROL",1,1163,"ADDENDUM 1, ESTABLISHING ALTERNATE MAXIMUM CHARGING FLOW CONTROL"]
[1164,"ADDENDUM 1, ESTABLISHING ALTERNATE MAXIMUM CHARGING FLOW CONTROL",1,1164,"ADDENDUM 1, ESTABLISHING ALTERNATE MAXIMUM CHARGING FLOW CONTROL"]
[1165,18,1,1165,18]
[1166,18,1,1166,18]
[1167,14,1,1167,14]
[1168,14,1,1168,14]
[1169,"0POP05\\u8209?EO\\u8209?EO10, LOSS OF REACTOR OR SECONDARY COOLANT, Step 20",1,1169,"0POP05\\u8209?EO\\u8209?EO10, LOSS OF REACTOR OR SECONDARY COOLANT, Step 20"]
[1170,18,1,1170,18]
[1171,19,1,1171,19]
[1172,19,1,1172,19]
[1173,"ADDENDUM 3, SG PORV LOCAL OPERATION",1,1173,"ADDENDUM 3, SG PORV LOCAL OPERATION"]
[1174,"ADDENDUM 3, SG PORV LOCAL OPERATION",1,1174,"ADDENDUM 3, SG PORV LOCAL OPERATION"]
[1175,20,1,1175,20]
[1176,18,1,1176,18]
[1177,18,1,1177,18]
[1178,23,1,1178,23]
[1179,23,1,1179,23]
[1180,18,1,1180,18]
[1181,18,1,1181,18]
[1182,"ADDENDUM 1, ESTABLISHING ALTERNATE MAXIMUM CHARGING FLOW CONTROL",1,1182,"ADDENDUM 1, ESTABLISHING ALTERNATE MAXIMUM CHARGING FLOW CONTROL"]
[1183,"ADDENDUM 1, ESTABLISHING ALTERNATE MAXIMUM CHARGING FLOW CONTROL",1,1183,"ADDENDUM 1, ESTABLISHING ALTERNATE MAXIMUM CHARGING FLOW CONTROL"]
[1184,18,1,1184,18]
[1185,18,1,1185,18]
[1186,18,1,1186,18]
[1187,18,1,1187,18]
[1188,"0POP05\\u8209?EO\\u8209?EO10, LOSS OF REACTOR OR SECONDARY COOLANT, Step 20",1,1188,"0POP05\\u8209?EO\\u8209?EO10, LOSS OF REACTOR OR SECONDARY COOLANT, Step 20"]
[1189,3,1,1189,3]
[1190,"ADDENDUM 1, ESTABLISHING ALTERNATE MAXIMUM CHARGING FLOW CONTROL",1,1190,"ADDENDUM 1, ESTABLISHING ALTERNATE MAXIMUM CHARGING FLOW CONTROL"]
[1191,"ADDENDUM 1, ESTABLISHING ALTERNATE MAXIMUM CHARGING FLOW CONTROL",1,1191,"ADDENDUM 1, ESTABLISHING ALTERNATE MAXIMUM CHARGING FLOW CONTROL"]
[1192,"3.d",1,1192,"3.d"]
[1193,6,1,1193,6]
[1194,6,1,1194,6]
[1195,1,1,1195,1]
[1196,7,1,1196,7]
[1197,7,1,1197,7]
[1198,8,1,1198,8]
[1199,8,1,1199,8]
[1200,"0POP05\\u8209?EO\\u8209?FRP1, RESPONSE TO IMMINENT PRESSURIZED THERMAL SHOCK CONDITION",1,1200,"0POP05\\u8209?EO\\u8209?FRP1, RESPONSE TO IMMINENT PRESSURIZED THERMAL SHOCK CONDITION"]
[1201,8,1,1201,8]
[1202,8,1,1202,8]
[1203,"9.c",1,1203,"9.c"]
[1204,"9.i",1,1204,"9.i"]
[1205,"9.h",1,1205,"9.h"]
[1206,"ADDENDUM 2, SG PORV LOCAL OPERATION",1,1206,"ADDENDUM 2, SG PORV LOCAL OPERATION"]
[1207,"0POP05\\u8209?EO\\u8209?FRC1, RESPONSE TO INADEQUATE CORE COOLING",1,1207,"0POP05\\u8209?EO\\u8209?FRC1, RESPONSE TO INADEQUATE CORE COOLING"]
[1208,14,1,1208,14]
[1209,"ADDENDUM 2, SG PORV LOCAL OPERATION",1,1209,"ADDENDUM 2, SG PORV LOCAL OPERATION"]
[1210,13,1,1210,13]
[1211,"ADDENDUM 1, ESTABLISHING ALTERNATE MAXIMUM CHARGING FLOW CONTROL",1,1211,"ADDENDUM 1, ESTABLISHING ALTERNATE MAXIMUM CHARGING FLOW CONTROL"]
[1212,"ADDENDUM 1, ESTABLISHING ALTERNATE MAXIMUM CHARGING FLOW CONTROL",1,1212,"ADDENDUM 1, ESTABLISHING ALTERNATE MAXIMUM CHARGING FLOW CONTROL"]
[1213,13,1,1213,13]
[1214,"0POP05\\u8209?EO\\u8209?EO10, LOSS OF REACTOR OR SECONDARY COOLANT, Step 20",1,1214,"0POP05\\u8209?EO\\u8209?EO10, LOSS OF REACTOR OR SECONDARY COOLANT, Step 20"]
[1215,"0POP05\\u8209?EO\\u8209?EC32, SGTR WITH LOSS OF REACTOR COOLANT \\u8209? SATURATED RECOVERY DESIRED",1,1215,"0POP05\\u8209?EO\\u8209?EC32, SGTR WITH LOSS OF REACTOR COOLANT \\u8209? SATURATED RECOVERY DESIRED"]
[1216,"ADDENDUM 1, ESTABLISHING ALTERNATE MAXIMUM CHARGING FLOW CONTROL",1,1216,"ADDENDUM 1, ESTABLISHING ALTERNATE MAXIMUM CHARGING FLOW CONTROL"]
[1217,"ADDENDUM 1, ESTABLISHING ALTERNATE MAXIMUM CHARGING FLOW CONTROL",1,1217,"ADDENDUM 1, ESTABLISHING ALTERNATE MAXIMUM CHARGING FLOW CONTROL"]
[1218,"3.d",{"$f":"IF(B1219=E1219,1,0)","v":1},1218,"3.d"]
[1219,10,1,1219,10]
[1220,10,1,1220,10]
[1221,4,1,1221,4]
[1222,4,1,1222,4]
[1223,"ADDENDUM 1, ESTABLISHING MAIN FW FLOW",1,1223,"ADDENDUM 1, ESTABLISHING MAIN FW FLOW"]
[1226,"ADDENDUM 2, ESTABLISHING FEED FLOW WITH CONDENSATE SYSTEM",1,1226,"ADDENDUM 2, ESTABLISHING FEED FLOW WITH CONDENSATE SYSTEM"]
[1224,7,1,1224,7]
[1225,7,1,1225,7]
[1227,7,1,1227,7]
[1228,9,1,1228,9]
[1229,1,1,1229,1]
[1230,"10 through 13",1,1230,"10 through 13"]
[1231,3,1,1231,3]
[1232,3,1,1232,3]
[1236,"0POP05\\u8209?EO\\u8209?EO00, REACTOR TRIP OR SAFETY INJECTION",1,1236,"0POP05\\u8209?EO\\u8209?EO00, REACTOR TRIP OR SAFETY INJECTION"]
[1233,14,1,1233,14]
[1234,"ADDENDUM 3, SG PORV LOCAL OPERATION",1,1234,"ADDENDUM 3, SG PORV LOCAL OPERATION"]
[1235,"ADDENDUM 2, ESTABLISHING FEED FLOW WITH CONDENSATE SYSTEM",1,1235,"ADDENDUM 2, ESTABLISHING FEED FLOW WITH CONDENSATE SYSTEM"]
[1237,"ADDENDUM 4, VERIFICATION OF SI EQUIPMENT OPERATION",1,1237,"ADDENDUM 4, VERIFICATION OF SI EQUIPMENT OPERATION"]
[1238,"ADDENDUM 6, ESTABLISHING ALTERNATE MAXIMUM CHARGING FLOW CONTROL",1,1238,"ADDENDUM 6, ESTABLISHING ALTERNATE MAXIMUM CHARGING FLOW CONTROL"]
[1239,"ADDENDUM 6, ESTABLISHING ALTERNATE MAXIMUM CHARGING FLOW CONTROL",1,1239,"ADDENDUM 6, ESTABLISHING ALTERNATE MAXIMUM CHARGING FLOW CONTROL"]
[1240,"22.c",1,1240,"22.c"]
[1241,24,1,1241,24]
[1242,24,1,1242,24]
[1243,"23.c",1,1243,"23.c"]
[1244,24,1,1244,24]
[1245,24,1,1245,24]
[1246,3,1,1246,3]
[1247,"ADDENDUM 1, ESTABLISHING MAIN FW FLOW",1,1247,"ADDENDUM 1, ESTABLISHING MAIN FW FLOW"]
[1248,"ADDENDUM 2, ESTABLISHING FEED FLOW WITH CONDENSATE SYSTEM",1,1248,"ADDENDUM 2, ESTABLISHING FEED FLOW WITH CONDENSATE SYSTEM"]
[1249,24,1,1249,24]
[1250,24,1,1250,24]
[1251,24,1,1251,24]
[1252,24,1,1252,24]
[1253,"28.a",1,1253,"28.a"]
[1254,30,1,1254,30]
[1255,29,1,1255,29]
[1256,29,1,1256,29]
[1257,"28.a",1,1257,"28.a"]
[1258,29,1,1258,29]
[1259,29,1,1259,29]
[1260,29,1,1260,29]
[1261,29,1,1261,29]
[1262,28,1,1262,28]
[1263,28,1,1263,28]
[1264,28,1,1264,28]
[1265,"0POP05\\u8209?EO\\u8209?EO10, LOSS OF REACTOR OR SECONDARY COOLANT, Step 1",1,1265,"0POP05\\u8209?EO\\u8209?EO10, LOSS OF REACTOR OR SECONDARY COOLANT, Step 1"]
[1266,"0POP05\\u8209?EO\\u8209?EO10, LOSS OF REACTOR OR SECONDARY COOLANT, Step 1",1,1266,"0POP05\\u8209?EO\\u8209?EO10, LOSS OF REACTOR OR SECONDARY COOLANT, Step 1"]
[1267,"0POP05\\u8209?EO\\u8209?EO10, LOSS OF REACTOR OR SECONDARY COOLANT, Step 1",1,1267,"0POP05\\u8209?EO\\u8209?EO10, LOSS OF REACTOR OR SECONDARY COOLANT, Step 1"]
[1268,32,1,1268,32]
[1269,"0POP05\\u8209?EO\\u8209?ES11, SI TERMINATION, Step 13",1,1269,"0POP05\\u8209?EO\\u8209?ES11, SI TERMINATION, Step 13"]
[1270,5,1,1270,5]
[1271,"?",1,1271,"?"]
[1272,"?",1,1272,"?"]
[1273,"ADDENDUM 1, ESTABLISHING MAIN FW FLOW, Step 1",1,1273,"ADDENDUM 1, ESTABLISHING MAIN FW FLOW, Step 1"]
[1274,"ADDENDUM 6, ESTABLISHING ALTERNATE MAXIMUM CHARGING FLOW CONTROL",1,1274,"ADDENDUM 6, ESTABLISHING ALTERNATE MAXIMUM CHARGING FLOW CONTROL"]
[1275,"ADDENDUM 6, ESTABLISHING ALTERNATE MAXIMUM CHARGING FLOW CONTROL",1,1275,"ADDENDUM 6, ESTABLISHING ALTERNATE MAXIMUM CHARGING FLOW CONTROL"]
[1276,"ADDENDUM 6, ESTABLISHING ALTERNATE MAXIMUM CHARGING FLOW CONTROL",1,1276,"ADDENDUM 6, ESTABLISHING ALTERNATE MAXIMUM CHARGING FLOW CONTROL"]
[1277,"4.g",1,1277,"4.g"]
[1278,"4.h",1,1278,"4.h"]
[1279,"4.e",1,1279,"4.e"]
[1280,"ADDENDUM 3, SG PORV LOCAL OPERATION",1,1280,"ADDENDUM 3, SG PORV LOCAL OPERATION"]
[1281,"0POP05\\u8209?EO\\u8209?FRH3, RESPONSE TO STEAM GENERATOR HIGH LEVEL, Step 1",1,1281,"0POP05\\u8209?EO\\u8209?FRH3, RESPONSE TO STEAM GENERATOR HIGH LEVEL, Step 1"]
[1282,"ADDENDUM 1, SG PORV LOCAL OPERATION",{"$f":"IF(B1283=E1283,1,0)","v":1},1282,"ADDENDUM 1, SG PORV LOCAL OPERATION"]
[1283,6,1,1283,6]
[1284,6,1,1284,6]
[1285,3,1,1285,3]
[1286,5,1,1286,5]
[1287,5,1,1287,5]
[1288,"ADDENDUM 1, FAILING AIR TO MSIVs and MSIBs",1,1288,"ADDENDUM 1, FAILING AIR TO MSIVs and MSIBs"]
[1289,"0POP05\\u8209?EO\\u8209?EO30, STEAM GENERATOR TUBE RUPTURE, Step 1",1,1289,"0POP05\\u8209?EO\\u8209?EO30, STEAM GENERATOR TUBE RUPTURE, Step 1"]
[1290,"0POP05\\u8209?EO\\u8209?EO30, STEAM GENERATOR TUBE RUPTURE",1,1290,"0POP05\\u8209?EO\\u8209?EO30, STEAM GENERATOR TUBE RUPTURE"]
[1291,"0POP05\\u8209?EO\\u8209?ES31, POST\\u8209?SGTR COOLDOWN USING BACKFILL",1,1291,"0POP05\\u8209?EO\\u8209?ES31, POST\\u8209?SGTR COOLDOWN USING BACKFILL"]
[1292,"0POP05\\u8209?EO\\u8209?ES32, POST\\u8209?SGTR COOLDOWN USING BLOWDOWN",1,1292,"0POP05\\u8209?EO\\u8209?ES32, POST\\u8209?SGTR COOLDOWN USING BLOWDOWN"]
[1293,"0POP05\\u8209?EO\\u8209?ES33, POST\\u8209?SGTR COOLDOWN USING STEAM DUMP",1,1293,"0POP05\\u8209?EO\\u8209?ES33, POST\\u8209?SGTR COOLDOWN USING STEAM DUMP"]
[1294,"0POP05\\u8209?EO\\u8209?EC31, SGTR WITH LOSS OF REACTOR COOLANT \\u8209? SUBCOOLED RECOVERY DESIRED",1,1294,"0POP05\\u8209?EO\\u8209?EC31, SGTR WITH LOSS OF REACTOR COOLANT \\u8209? SUBCOOLED RECOVERY DESIRED"]
[1295,"0POP05\\u8209?EO\\u8209?EC32, SGTR WITH LOSS OF REACTOR COOLANT \\u8209? SATURATED RECOVERY DESIRED",1,1295,"0POP05\\u8209?EO\\u8209?EC32, SGTR WITH LOSS OF REACTOR COOLANT \\u8209? SATURATED RECOVERY DESIRED"]
[1296,"0POP05\\u8209?EO\\u8209?EC33, SGTR WITHOUT PRESSURIZER PRESSURE CONTROL",1,1296,"0POP05\\u8209?EO\\u8209?EC33, SGTR WITHOUT PRESSURIZER PRESSURE CONTROL"]
[1297,"ADDENDUM 1, SG PORV LOCAL OPERATION",1,1297,"ADDENDUM 1, SG PORV LOCAL OPERATION"]
[1298,"ADDENDUM 2, SG PORV POWER SUPPLIES",1,1298,"ADDENDUM 2, SG PORV POWER SUPPLIES"]
[1299,"0POP05\\u8209?EO\\u8209?EO20, FAULTED STEAM GENERATOR ISOLATION, Step 1",1,1299,"0POP05\\u8209?EO\\u8209?EO20, FAULTED STEAM GENERATOR ISOLATION, Step 1"]
[1300,6,1,1300,6]
[1301,4,1,1301,4]
[1302,"ADDENDUM 1, COLD OVERPRESSURE LIMITS",1,1302,"ADDENDUM 1, COLD OVERPRESSURE LIMITS"]
[1303,"4.e",1,1303,"4.e"]
[1304,"4.d",1,1304,"4.d"]
[1305,"4.e",1,1305,"4.e"]
[1306,"4.e",1,1306,"4.e"]
[1307,5,1,1307,5]
[1308,5,1,1308,5]
[1309,15,1,1309,15]
[1310,26,1,1310,26]
[1311,"ADDENDUM 2, ESTABLISHING ALTERNATE CHARGING FLOW CONTROL",1,1311,"ADDENDUM 2, ESTABLISHING ALTERNATE CHARGING FLOW CONTROL"]
[1312,"ADDENDUM 2, ESTABLISHING ALTERNATE CHARGING FLOW CONTROL",1,1312,"ADDENDUM 2, ESTABLISHING ALTERNATE CHARGING FLOW CONTROL"]
[1313,"14.c",1,1313,"14.c"]
[1314,26,1,1314,26]
[1315,2,1,1315,2]
[1316,15,1,1316,15]
[1317,"18.c",1,1317,"18.c"]
[1318,25,1,1318,25]
[1319,"ADDENDUM 3, ESTABLISHING NORMAL LETDOWN",1,1319,"ADDENDUM 3, ESTABLISHING NORMAL LETDOWN"]
[1320,"ADDENDUM 4, ESTABLISHING EXCESS LETDOWN",1,1320,"ADDENDUM 4, ESTABLISHING EXCESS LETDOWN"]
[1321,"ADDENDUM 4, ESTABLISHING EXCESS LETDOWN",1,1321,"ADDENDUM 4, ESTABLISHING EXCESS LETDOWN"]
[1322,"18.a",1,1322,"18.a"]
[1323,18,1,1323,18]
[1324,"18.b",1,1324,"18.b"]
[1325,18,1,1325,18]
[1326,"ADDENDUM 5, FRP1 POST\\u8209?SOAK COOLDOWN LIMIT (NORMAL)",1,1326,"ADDENDUM 5, FRP1 POST\\u8209?SOAK COOLDOWN LIMIT (NORMAL)"]
[1327,"ADDENDUM 6, FRP1 POST\\u8209?SOAK COOLDOWN LIMIT (ADVERSE)",1,1327,"ADDENDUM 6, FRP1 POST\\u8209?SOAK COOLDOWN LIMIT (ADVERSE)"]
[1328,"26.b",1,1328,"26.b"]
[1329,2,1,1329,2]
[1330,4,1,1330,4]
[1331,"3.d",1,1331,"3.d"]
[1332,"3.e",1,1332,"3.e"]
[1333,4,1,1333,4]
[1334,"ADDENDUM 2, FRP2 COOLDOWN LIMIT (NORMAL)",1,1334,"ADDENDUM 2, FRP2 COOLDOWN LIMIT (NORMAL)"]
[1335,"ADDENDUM 3, FRP2 COOLDOWN LIMIT (ADVERSE)",1,1335,"ADDENDUM 3, FRP2 COOLDOWN LIMIT (ADVERSE)"]
[1338,"ADDENDUM 1, PHASE A ISOLATION VERIFICATION",1,1338,"ADDENDUM 1, PHASE A ISOLATION VERIFICATION"]
[1336,2,1,1336,2]
[1337,2,1,1337,2]
[1339,"0POP05\\u8209?EO\\u8209?EC11, LOSS OF EMERGENCY COOLANT RECIRCULATION",1,1339,"0POP05\\u8209?EO\\u8209?EC11, LOSS OF EMERGENCY COOLANT RECIRCULATION"]
[1340,"0POP05\\u8209?EO\\u8209?EC11, LOSS OF EMERGENCY COOLANT RECIRCULATION",1,1340,"0POP05\\u8209?EO\\u8209?EC11, LOSS OF EMERGENCY COOLANT RECIRCULATION"]
[1341,4,1,1341,4]
[1342,"4.e",1,1342,"4.e"]
[1343,"ADDENDUM 2, FAILING AIR TO MSIVs AND MSIBs",1,1343,"ADDENDUM 2, FAILING AIR TO MSIVs AND MSIBs"]
[1344,8,1,1344,8]
[1345,4,1,1345,4]
[1346,"ADDENDUM 2, ESTABLISHING EXCESS LETDOWN",{"$f":"IF(B1347=E1347,1,0)","v":1},1346,"ADDENDUM 2, ESTABLISHING EXCESS LETDOWN"]
[1347,23,1,1347,23]
[1348,"ADDENDUM 1, ESTABLISHING ALTERNATE CHARGING FLOW CONTROL",1,1348,"ADDENDUM 1, ESTABLISHING ALTERNATE CHARGING FLOW CONTROL"]
[1349,"20.d",1,1349,"20.d"]
[1350,"ADDENDUM 3, ESTABLISHING NORMAL LETDOWN",1,1350,"ADDENDUM 3, ESTABLISHING NORMAL LETDOWN"]
[1351,"ADDENDUM 2, ESTABLISHING EXCESS LETDOWN",1,1351,"ADDENDUM 2, ESTABLISHING EXCESS LETDOWN"]
[1352,23,1,1352,23]
[1353,"22.e",1,1353,"22.e"]
[1354,23,1,1354,23]
[1355,23,1,1355,23]
[1356,23,1,1356,23]
[1357,"ADDENDUM 2, ESTABLISHING EXCESS LETDOWN",1,1357,"ADDENDUM 2, ESTABLISHING EXCESS LETDOWN"]
[1358,27,1,1358,27]
[1359,"0POP05\\u8209?EO\\u8209?EC11, LOSS OF EMERGENCY COOLANT RECIRCULATION",1,1359,"0POP05\\u8209?EO\\u8209?EC11, LOSS OF EMERGENCY COOLANT RECIRCULATION"]
[1360,"0POP05\\u8209?EO\\u8209?EC32, SGTR WITH LOSS OF REACTOR COOLANT \\u8209? SATURATED RECOVERY DESIRED",1,1360,"0POP05\\u8209?EO\\u8209?EC32, SGTR WITH LOSS OF REACTOR COOLANT \\u8209? SATURATED RECOVERY DESIRED"]
[1361,"0POP05\\u8209?EO\\u8209?EC33, SGTR WITHOUT PRESSURIZER PRESSURE CONTROL",1,1361,"0POP05\\u8209?EO\\u8209?EC33, SGTR WITHOUT PRESSURIZER PRESSURE CONTROL"]
[1362,"ADDENDUM 1, ESTABLISHING ALTERNATE CHARGING FLOW CONTROL",1,1362,"ADDENDUM 1, ESTABLISHING ALTERNATE CHARGING FLOW CONTROL"]
[1363,"4.c",1,1363,"4.c"]
[1364,5,1,1364,5]
[1365,"0POP05\\u8209?EO\\u8209?EO00, REACTOR TRIP OR SAFETY INJECTION, Step 1",1,1365,"0POP05\\u8209?EO\\u8209?EO00, REACTOR TRIP OR SAFETY INJECTION, Step 1"]
[1366,"0POP05\\u8209?EO\\u8209?EO10, LOSS OF REACTOR OR SECONDARY COOLANT, Step 1",1,1366,"0POP05\\u8209?EO\\u8209?EO10, LOSS OF REACTOR OR SECONDARY COOLANT, Step 1"]
[1367,"0POP05\\u8209?EO\\u8209?EO00, REACTOR TRIP OR SAFETY INJECTION, Step 1",1,1367,"0POP05\\u8209?EO\\u8209?EO00, REACTOR TRIP OR SAFETY INJECTION, Step 1"]
[1368,"0POP05\\u8209?EO\\u8209?EO10, LOSS OF REACTOR OR SECONDARY COOLANT, Step 1",1,1368,"0POP05\\u8209?EO\\u8209?EO10, LOSS OF REACTOR OR SECONDARY COOLANT, Step 1"]
[1369,"0POP05\\u8209?EO\\u8209?CSFS, CRITICAL SAFETY FUNCTION STATUS TREES",1,1369,"0POP05\\u8209?EO\\u8209?CSFS, CRITICAL SAFETY FUNCTION STATUS TREES"]
[1370,"ADDENDUM 1, ESTABLISHING ALTERNATE CHARGING FLOW CONTROL",1,1370,"ADDENDUM 1, ESTABLISHING ALTERNATE CHARGING FLOW CONTROL"]
[1371,"3.f",1,1371,"3.f"]
[1372,"ADDENDUM 3, ESTABLISHING NORMAL LETDOWN",1,1372,"ADDENDUM 3, ESTABLISHING NORMAL LETDOWN"]
[1373,"ADDENDUM 2, ESTABLISHING EXCESS LETDOWN",1,1373,"ADDENDUM 2, ESTABLISHING EXCESS LETDOWN"]
[1374,13,1,1374,13]
[1375,"ADDENDUM 4, RCS PRESSURE \\u8209? TEMPERATURE COOLDOWN CURVE",1,1375,"ADDENDUM 4, RCS PRESSURE \\u8209? TEMPERATURE COOLDOWN CURVE"]
[1376,10,1,1376,10]
[1377,10,1,1377,10]
[1378,10,1,1378,10]
[1379,10,1,1379,10]
[1380,7,1,1380,7]
[1381,10,1,1381,10]
[1382,13,1,1382,13]
[1383,13,1,1383,13]
[1384,13,1,1384,13]
[1385,21,1,1385,21]
[1386,"ADDENDUM 5, ESTABLISHING CONTAINMENT H2 MONITORING",1,1386,"ADDENDUM 5, ESTABLISHING CONTAINMENT H2 MONITORING"]
[1387,"13.c and 13.d",1,1387,"13.c and 13.d"]
[1388,14,1,1388,14]
[1389,14,1,1389,14]
[1390,"ADDENDUM 6, INSTRUCTIONS FOR DETERMINING VENTING TIME",1,1390,"ADDENDUM 6, INSTRUCTIONS FOR DETERMINING VENTING TIME"]
[1391,1,1,1391,1]
[1392,"ADDENDUM 6, INSTRUCTIONS FOR DETERMINING VENTING TIME",1,1392,"ADDENDUM 6, INSTRUCTIONS FOR DETERMINING VENTING TIME"]
[1393,13,1,1393,13]

{"sheet":"Sheet3","index":1,"n_rows":0,"n_cols":0,"rows_kept":0}